Workbook

Sheet Sheet1 (hidden)

Sheet (Orca-4)
A1: s | B1: Orca-4 | L1: Tarih: | N1: 2024-08-21
C3: Tip Kat Planı | H3: Penthouse Kat Planı
B5: 1. Kat | I5: Köşe | J5: Deniz M. | K5: Dağ M. | L5: Havuz/Peysaj M. | M5: Kuzey | N5: Güney | O5: Doğu | P5: Batı
B7: No: | C7: MODEL | D7: Brüt Alan | E7: Balkon | F7: Fiyat | G7: Durum | H7: Not
B8: 1 | C8: 2+1 | D8: 125 | E8: 40 | G8: SOLD | K8: x | L8: x | M8: x | P8: x
B9: 2 | C9: 1+1 | D9: 86 | E9: 16 | F9: 151000 | G9: deposit | K9: x | M9: x | O9: x
B10: 3 | C10: 1+1 | D10: 86 | E10: 16 | F10: 151000 | G10: SOLD | K10: x | M10: x | O10: x
B11: 4 | C11: 2+1 | D11: 125 | E11: 40 | G11: SOLD | K11: x | L11: x | N11: x | O11: x
B12: 2. Kat | I12: Köşe | J12: Deniz M. | K12: Dağ M. | L12: Havuz/Peysaj M. | M12: Kuzey | N12: Güney | O12: Doğu | P12: Batı
B14: No: | C14: MODEL | D14: Brüt Alan | E14: Balkon | F14: Fiyat | G14: Durum | H14: Not
B15: 5 | C15: 2+1 | D15: 125 | E15: 40 | G15: SOLD | K15: x | L15: x | M15: x | P15: x
B16: 6 | C16: 1+1 | D16: 86 | E16: 16 | F16: 155000 | G16: SOLD | K16: x | M16: x | O16: x
B17: 7 | C17: 1+1 | D17: 86 | E17: 16 | F17: 155000 | G17: S.R-A.T | H17: RİGHT MOVE | K17: x | M17: x | O17: x
B18: 8 | C18: 2+1 | D18: 125 | E18: 40 | G18: SOLD | K18: x | L18: x | N18: x | O18: x
B19: 3. Kat | I19: Köşe | J19: Deniz M. | K19: Dağ M. | L19: Havuz/Peysaj M. | M19: Kuzey | N19: Güney | O19: Doğu | P19: Batı
B21: No: | C21: MODEL | D21: Brüt Alan | E21: Balkon | F21: Fiyat | G21: Durum | H21: Not
B22: 9 | C22: 2+1 | D22: 125 | E22: 40 | F22: 195000 | G22: DEPOSİT | H22: RİGHT MOVE | K22: x | L22: x | M22: x | P22: x
B23: 10 | C23: 1+1 | D23: 86 | E23: 16 | F23: 156000 | G23: RES.12.09.S.GH | K23: x | M23: x | O23: x
B24: 11 | C24: 1+1 | D24: 86 | E24: 16 | F24: 156000 | G24: RES.11.10.H.K | K24: x | M24: x | O24: x
B25: 12 | C25: 2+1 | D25: 125 | E25: 40 | F25: 195000 | G25: SOLD | K25: x | L25: x | N25: x | O25: x
B26: 4. Kat | I26: Köşe | J26: Deniz M. | K26: Dağ M. | L26: Havuz/Peysaj M. | M26: Kuzey | N26: Güney | O26: Doğu | P26: Batı
B28: No: | C28: MODEL | D28: Brüt Alan | E28: Balkon | F28: Fiyat | G28: Durum | H28: Not
B29: 13 | C29: 2+1 | D29: 125 | E29: 40 | G29: SOLD | K29: x | L29: x | M29: x | P29: x
B30: 14 | C30: 1+1 | D30: 86 | E30: 16 | G30: SOLD | K30: x | M30: x | O30: x
B31: 15 | C31: 1+1 | D31: 86 | E31: 16 | F31: 158500 | K31: x | M31: x | O31: x
B32: 16 | C32: 2+1 | D32: 125 | E32: 40 | G32: SOLD | K32: x | L32: x | N32: x | O32: x
B33: 5. Kat | I33: Köşe | J33: Deniz M. | K33: Dağ M. | L33: Havuz/Peysaj M. | M33: Kuzey | N33: Güney | O33: Doğu | P33: Batı
B35: No: | C35: MODEL | D35: Brüt Alan | E35: Balkon | F35: Fiyat | G35: Durum | H35: Not
B36: 17 | C36: 2+1 | D36: 125 | E36: 40 | G36: SOLD | J36: x | K36: x | L36: x | M36: x | P36: x
B37: 18 | C37: 1+1 | D37: 86 | E37: 16 | G37: SOLD | J37: x | K37: x | M37: x | O37: x
B38: 19 | C38: 1+1 | D38: 86 | E38: 16 | G38: SOLD | J38: x | K38: x | M38: x | O38: x
B39: 20 | C39: 2+1 | D39: 125 | E39: 40 | G39: SOLD | J39: x | K39: x | L39: x | N39: x | O39: x
B40: 6. Kat | I40: Köşe | J40: Deniz M. | K40: Dağ M. | L40: Havuz/Peysaj M. | M40: Kuzey | N40: Güney | O40: Doğu | P40: Batı
B42: No: | C42: MODEL | D42: Brüt Alan | E42: Balkon | F42: Fiyat | G42: Durum | H42: Not
B43: 21 | C43: 2+1 | D43: 125 | E43: 40 | G43: SOLD | J43: x | K43: x | L43: x | M43: x | P43: x
B44: 22 | C44: 1+1 | D44: 86 | E44: 16 | G44: SOLD | J44: x | K44: x | M44: x | O44: x
B45: 23 | C45: 1+1 | D45: 86 | E45: 16 | G45: SOLD | J45: x | K45: x | M45: x | O45: x
B46: 24 | C46: 2+1 | D46: 125 | E46: 40 | G46: DEPOZİT | J46: x | K46: x | L46: x | N46: x | O46: x
B47: 7. Kat | I47: Köşe | J47: Deniz M. | K47: Dağ M. | L47: Havuz/Peysaj M. | M47: Kuzey | N47: Güney | O47: Doğu | P47: Batı
B49: No: | C49: MODEL | D49: Brüt Alan | E49: Balkon | F49: Fiyat | G49: Durum | H49: Not
B50: 25 | C50: 2+1 | D50: 125 | E50: 40 | F50: 205000 | G50: DEPOSİTE | J50: x | K50: x | L50: x | M50: x | P50: x
B51: 26 | C51: 1+1 | D51: 86 | E51: 16 | G51: SOLD | J51: x | K51: x | M51: x | O51: x
B52: 27 | C52: 1+1 | D52: 86 | E52: 16 | G52: SOLD | J52: x | K52: x | M52: x | O52: x
B53: 28 | C53: 2+1 | D53: 125 | E53: 40 | G53: SOLD | J53: x | K53: x | L53: x | N53: x | O53: x
B54: 8. Kat | I54: Köşe | J54: Deniz M. | K54: Dağ M. | L54: Havuz/Peysaj M. | M54: Kuzey | N54: Güney | O54: Doğu | P54: Batı
B56: No: | C56: MODEL | D56: Brüt Alan | E56: Balkon | F56: Fiyat | G56: Durum | H56: Not
B57: 29 | C57: 2+1 | D57: 125 | E57: 40 | G57: SOLD | J57: x | K57: x | L57: x | M57: x | P57: x
B58: 30 | C58: 1+1 | D58: 86 | E58: 16 | F58: 168500 | G58: RES.25.10.L.G | J58: x | K58: x | M58: x | O58: x
B59: 31 | C59: 1+1 | D59: 86 | E59: 16 | F59: 168500 | G59: DEPOSİT | J59: x | K59: x | M59: x | O59: x
B60: 32 | C60: 2+1 | D60: 125 | E60: 40 | F60: 207500 | G60: SOLD | J60: x | K60: x | L60: x | N60: x | O60: x
B61: 9. Kat | I61: Köşe | J61: Deniz M. | K61: Dağ M. | L61: Havuz/Peysaj M. | M61: Kuzey | N61: Güney | O61: Doğu | P61: Batı
B63: No: | C63: MODEL | D63: Brüt Alan | E63: Balkon | F63: Fiyat | G63: Durum | H63: Not
B64: 33 | C64: 2+1 | D64: 125 | E64: 40 | G64: SOLD | J64: x | K64: x | L64: x | M64: x | P64: x
B65: 34 | C65: 1+1 | D65: 86 | E65: 16 | F65: 171000 | J65: x | K65: x | M65: x | O65: x
B66: 35 | C66: 1+1 | D66: 86 | E66: 16 | G66: SOLD | J66: x | K66: x | M66: x | O66: x
B67: 36 | C67: 2+1 | D67: 125 | E67: 40 | G67: SOLD | J67: x | K67: x | L67: x | N67: x | O67: x
B68: 10. Kat | I68: Köşe | J68: Deniz M. | K68: Dağ M. | L68: Havuz/Peysaj M. | M68: Kuzey | N68: Güney | O68: Doğu | P68: Batı
B70: No: | C70: MODEL | D70: Brüt Alan | E70: Balkon | F70: Fiyat | G70: Durum | H70: Not
B71: 37 | C71: 2+1 | D71: 125 | E71: 40 | G71: SOLD | J71: x | K71: x | L71: x | M71: x | P71: x
B72: 38 | C72: 1+1 | D72: 86 | E72: 16 | F72: 173500 | G72: RES.22.10.R.E | J72: x | K72: x | M72: x | O72: x
B73: 39 | C73: 1+1 | D73: 86 | E73: 16 | G73: SOLD | J73: x | K73: x | M73: x | O73: x
B74: 40 | C74: 2+1 | D74: 125 | E74: 40 | G74: SOLD | J74: x | K74: x | L74: x | N74: x | O74: x
B75: 11. Kat | I75: Köşe | J75: Deniz M. | K75: Dağ M. | L75: Havuz/Peysaj M. | M75: Kuzey | N75: Güney | O75: Doğu | P75: Batı
B77: No: | C77: MODEL | D77: Brüt Alan | E77: Balkon | F77: Fiyat | G77: Durum | H77: Not
B78: 41 | C78: 1+1 Pent | D78: 173 | E78: 104 (acık) | G78: GN SONS | J78: x | K78: x | L78: x | M78: x | O78: x | P78: x
B79: 42 | C79: 1+1 | D79: 89 | E79: 19 | G79: GN SONS | J79: x | K79: x | M79: x | O79: x
B80: 43 | C80: 1+1 Pent | D80: 173 | E80: 104 (acık) | G80: GN SONS | J80: x | K80: x | L80: x | N80: x | O80: x | P80: x

Sheet (Orca-5)
B1: Orca-5 | L1: Tarih: | N1: 2024-08-21
C3: Tip Kat Planı | H3: Penthouse Kat Planı
B5: 1. Kat | I5: Köşe | J5: Deniz M. | K5: Dağ M. | L5: Havuz/Peysaj M. | M5: Kuzey | N5: Güney | O5: Doğu | P5: Batı
B7: No: | C7: MODEL | D7: Brüt Alan | E7: Balkon | F7: Fiyat | G7: Durum | H7: Not
B8: 1 | C8: 2+1 | D8: 125 | E8: 40 | G8: SOLD | I8: x | K8: x | L8: x | M8: x | P8: x
B9: 2 | C9: 1+1 | D9: 86 | E9: 16 | G9: SOLD | K9: x | M9: x | O9: x
B10: 3 | C10: 1+1 | D10: 86 | E10: 16 | G10: SOLD | K10: x | M10: x | O10: x
B11: 4 | C11: 2+1 | D11: 125 | E11: 40 | G11: SOLD | K11: x | L11: x | N11: x | O11: x
B12: 2. Kat | I12: Köşe | J12: Deniz M. | K12: Dağ M. | L12: Havuz/Peysaj M. | M12: Kuzey | N12: Güney | O12: Doğu | P12: Batı
B14: No: | C14: MODEL | D14: Brüt Alan | E14: Balkon | F14: Fiyat | G14: Durum | H14: Not
B15: 5 | C15: 2+1 | D15: 125 | E15: 40 | G15: SOLD | K15: x | L15: x | M15: x | P15: x
B16: 6 | C16: 1+1 | D16: 86 | E16: 16 | G16: SOLD | K16: x | M16: x | O16: x
B17: 7 | C17: 1+1 | D17: 86 | E17: 16 | F17: 153500 | G17: SOLD | K17: x | M17: x | O17: x
B18: 8 | C18: 2+1 | D18: 125 | E18: 40 | G18: SOLD | K18: x | L18: x | N18: x | O18: x
B19: 3. Kat | I19: Köşe | J19: Deniz M. | K19: Dağ M. | L19: Havuz/Peysaj M. | M19: Kuzey | N19: Güney | O19: Doğu | P19: Batı
B21: No: | C21: MODEL | D21: Brüt Alan | E21: Balkon | F21: Fiyat | G21: Durum | H21: Not
B22: 9 | C22: 2+1 | D22: 125 | E22: 40 | G22: SOLD | I22: x | K22: x | L22: x | M22: x | P22: x
B23: 10 | C23: 1+1 | D23: 86 | E23: 16 | G23: SOLD | K23: x | M23: x | O23: x
B24: 11 | C24: 1+1 | D24: 86 | E24: 16 | G24: SOLD | K24: x | M24: x | O24: x
B25: 12 | C25: 2+1 | D25: 125 | E25: 40 | F25: 195000 | G25: deposit | K25: x | L25: x | N25: x | O25: x
B26: 4. Kat | I26: Köşe | J26: Deniz M. | K26: Dağ M. | L26: Havuz/Peysaj M. | M26: Kuzey | N26: Güney | O26: Doğu | P26: Batı
B28: No: | C28: MODEL | D28: Brüt Alan | E28: Balkon | F28: Fiyat | G28: Durum | H28: Not
B29: 13 | C29: 2+1 | D29: 125 | E29: 40 | G29: SOLD | I29: x | K29: x | L29: x | M29: x | P29: x
B30: 14 | C30: 1+1 | D30: 86 | E30: 16 | G30: SOLD | K30: x | M30: x | O30: x
B31: 15 | C31: 1+1 | D31: 86 | E31: 16 | F31: 158500 | K31: x | M31: x | O31: x
B32: 16 | C32: 2+1 | D32: 125 | E32: 40 | G32: SOLD | K32: x | L32: x | N32: x | O32: x
B33: 5. Kat | I33: Köşe | J33: Deniz M. | K33: Dağ M. | L33: Havuz/Peysaj M. | M33: Kuzey | N33: Güney | O33: Doğu | P33: Batı
B35: No: | C35: MODEL | D35: Brüt Alan | E35: Balkon | F35: Fiyat | G35: Durum | H35: Not
B36: 17 | C36: 2+1 | D36: 125 | E36: 40 | G36: SOLD | I36: x | J36: x | K36: x | L36: x | M36: x | P36: x
B37: 18 | C37: 1+1 | D37: 86 | E37: 16 | G37: SOLD | J37: x | K37: x | M37: x | O37: x
B38: 19 | C38: 1+1 | D38: 86 | E38: 16 | F38: 161000 | J38: x | K38: x | M38: x | O38: x
B39: 20 | C39: 2+1 | D39: 125 | E39: 40 | G39: SOLD | J39: x | K39: x | L39: x | N39: x | O39: x
B40: 6. Kat | I40: Köşe | J40: Deniz M. | K40: Dağ M. | L40: Havuz/Peysaj M. | M40: Kuzey | N40: Güney | O40: Doğu | P40: Batı
B42: No: | C42: MODEL | D42: Brüt Alan | E42: Balkon | F42: Fiyat | G42: Durum | H42: Not
B43: 21 | C43: 2+1 | D43: 125 | E43: 40 | G43: SOLD | I43: x | J43: x | K43: x | L43: x | M43: x | P43: x
B44: 22 | C44: 1+1 | D44: 86 | E44: 16 | F44: 163500 | J44: x | K44: x | M44: x | O44: x
B45: 23 | C45: 1+1 | D45: 86 | E45: 16 | F45: 163500 | J45: x | K45: x | M45: x | O45: x
B46: 24 | C46: 2+1 | D46: 125 | E46: 40 | G46: SOLD | J46: x | K46: x | L46: x | N46: x | O46: x
B47: 7. Kat | I47: Köşe | J47: Deniz M. | K47: Dağ M. | L47: Havuz/Peysaj M. | M47: Kuzey | N47: Güney | O47: Doğu | P47: Batı
B49: No: | C49: MODEL | D49: Brüt Alan | E49: Balkon | F49: Fiyat | G49: Durum | H49: Not
B50: 25 | C50: 2+1 | D50: 125 | E50: 40 | G50: SOLD | I50: x | J50: x | K50: x | L50: x | M50: x | P50: x
B51: 26 | C51: 1+1 | D51: 86 | E51: 16 | F51: 166000 | J51: x | K51: x | M51: x | O51: x
B52: 27 | C52: 1+1 | D52: 86 | E52: 16 | F52: 166000 | J52: x | K52: x | M52: x | O52: x
B53: 28 | C53: 2+1 | D53: 125 | E53: 40 | G53: SOLD | J53: x | K53: x | L53: x | N53: x | O53: x
B54: 8. Kat | I54: Köşe | J54: Deniz M. | K54: Dağ M. | L54: Havuz/Peysaj M. | M54: Kuzey | N54: Güney | O54: Doğu | P54: Batı
B56: No: | C56: MODEL | D56: Brüt Alan | E56: Balkon | F56: Fiyat | G56: Durum | H56: Not
B57: 29 | C57: 2+1 | D57: 125 | E57: 40 | G57: SOLD | I57: x | J57: x | K57: x | L57: x | M57: x | P57: x
B58: 30 | C58: 1+1 | D58: 86 | E58: 16 | F58: 168500 | J58: x | K58: x | M58: x | O58: x
B59: 31 | C59: 1+1 | D59: 86 | E59: 16 | F59: 168500 | J59: x | K59: x | M59: x | O59: x
B60: 32 | C60: 2+1 | D60: 125 | E60: 40 | G60: SOLD | J60: x | K60: x | L60: x | N60: x | O60: x
B61: 9. Kat | I61: Köşe | J61: Deniz M. | K61: Dağ M. | L61: Havuz/Peysaj M. | M61: Kuzey | N61: Güney | O61: Doğu | P61: Batı
B63: No: | C63: MODEL | D63: Brüt Alan | E63: Balkon | F63: Fiyat | G63: Durum | H63: Not
B64: 33 | C64: 2+1 | D64: 125 | E64: 40 | G64: SOLD | I64: x | J64: x | K64: x | L64: x | M64: x | P64: x
B65: 34 | C65: 1+1 | D65: 86 | E65: 16 | F65: 171000 | J65: x | K65: x | M65: x | O65: x
B66: 35 | C66: 1+1 | D66: 86 | E66: 16 | F66: 171000 | J66: x | K66: x | M66: x | O66: x
B67: 36 | C67: 2+1 | D67: 125 | E67: 40 | G67: SOLD | J67: x | K67: x | L67: x | N67: x | O67: x
B68: 10. Kat | I68: Köşe | J68: Deniz M. | K68: Dağ M. | L68: Havuz/Peysaj M. | M68: Kuzey | N68: Güney | O68: Doğu | P68: Batı
B70: No: | C70: MODEL | D70: Brüt Alan | E70: Balkon | F70: Fiyat | G70: Durum | H70: Not
B71: 37 | C71: 2+1 | D71: 125 | E71: 40 | G71: SOLD | I71: x | J71: x | K71: x | L71: x | M71: x | P71: x
B72: 38 | C72: 1+1 | D72: 86 | E72: 16 | F72: 173500 | J72: x | K72: x | M72: x | O72: x
B73: 39 | C73: 1+1 | D73: 86 | E73: 16 | G73: SOLD | J73: x | K73: x | M73: x | O73: x
B74: 40 | C74: 2+1 | D74: 125 | E74: 40 | G74: SOLD | J74: x | K74: x | L74: x | N74: x | O74: x
B75: 11. Kat | I75: Köşe | J75: Deniz M. | K75: Dağ M. | L75: Havuz/Peysaj M. | M75: Kuzey | N75: Güney | O75: Doğu | P75: Batı
B77: No: | C77: MODEL | D77: Brüt Alan | E77: Balkon | F77: Fiyat | G77: Durum | H77: Not
B78: 41 | C78: 1+1 Pent | D78: 173 | E78: 104 (acık) | G78: GN SONS | I78: x | J78: x | K78: x | L78: x | M78: x | O78: x | P78: x
B79: 42 | C79: 1+1 | D79: 89 | E79: 19 | G79: GN SONS | J79: x | K79: x | M79: x | O79: x
B80: 43 | C80: 1+1 Pent | D80: 173 | E80: 104 (acık) | G80: GN SONS | J80: x | K80: x | L80: x | N80: x | O80: x | P80: x

Sheet (Orca-6)
A1: p | B1: Orca-6 | L1: Tarih: | N1: 2024-08-21
C3: Tip Kat Planı | H3: Penthouse Kat Planı
B5: 1. Kat | I5: Köşe | J5: Deniz M. | K5: Dağ M. | L5: Havuz/Peysaj M. | M5: Kuzey | N5: Güney | O5: Doğu | P5: Batı
B7: No: | C7: MODEL | D7: Brüt Alan | E7: Balkon | F7: Fiyat | G7: Durum | H7: Not
B8: 1 | C8: 2+1 | D8: 125 | E8: 40 | G8: SOLD | K8: x | L8: x | M8: x | P8: x
B9: 2 | C9: 1+1 | D9: 86 | E9: 16 | G9: SOLD | K9: x | M9: x | O9: x
B10: 3 | C10: 1+1 | D10: 86 | E10: 16 | G10: SOLD | K10: x | M10: x | O10: x
B11: 4 | C11: 2+1 | D11: 125 | E11: 40 | G11: SOLD | I11: x | K11: x | L11: x | N11: x | O11: x
B12: 2. Kat | I12: Köşe | J12: Deniz M. | K12: Dağ M. | L12: Havuz/Peysaj M. | M12: Kuzey | N12: Güney | O12: Doğu | P12: Batı
B14: No: | C14: MODEL | D14: Brüt Alan | E14: Balkon | F14: Fiyat | G14: Durum | H14: Not
B15: 5 | C15: 2+1 | D15: 125 | E15: 40 | G15: SOLD | K15: x | L15: x | M15: x | P15: x
B16: 6 | C16: 1+1 | D16: 86 | E16: 16 | G16: SOLD | K16: x | M16: x | O16: x
B17: 7 | C17: 1+1 | D17: 86 | E17: 16 | F17: 153500 | G17: DEPOSİT | K17: x | M17: x | O17: x
B18: 8 | C18: 2+1 | D18: 125 | E18: 40 | G18: SOLD | I18: x | K18: x | L18: x | N18: x | O18: x
B19: 3. Kat | I19: Köşe | J19: Deniz M. | K19: Dağ M. | L19: Havuz/Peysaj M. | M19: Kuzey | N19: Güney | O19: Doğu | P19: Batı
B21: No: | C21: MODEL | D21: Brüt Alan | E21: Balkon | F21: Fiyat | G21: Durum | H21: Not
B22: 9 | C22: 2+1 | D22: 125 | E22: 40 | G22: SOLD | K22: x | L22: x | M22: x | P22: x
B23: 10 | C23: 1+1 | D23: 86 | E23: 16 | F23: 156000 | G23: RES.04.10.B.F | K23: x | M23: x | O23: x
B24: 11 | C24: 1+1 | D24: 86 | E24: 16 | F24: 156000 | G24: DEPOSİTE | K24: x | M24: x | O24: x
B25: 12 | C25: 2+1 | D25: 125 | E25: 40 | G25: DEPOSİTE | I25: x | K25: x | L25: x | N25: x | O25: x
B26: 4. Kat | I26: Köşe | J26: Deniz M. | K26: Dağ M. | L26: Havuz/Peysaj M. | M26: Kuzey | N26: Güney | O26: Doğu | P26: Batı
B28: No: | C28: MODEL | D28: Brüt Alan | E28: Balkon | F28: Fiyat | G28: Durum | H28: Not
B29: 13 | C29: 2+1 | D29: 125 | E29: 40 | G29: SOLD | J29: x | K29: x | L29: x | M29: x | P29: x
B30: 14 | C30: 1+1 | D30: 86 | E30: 16 | G30: SOLD | K30: x | M30: x | O30: x
B31: 15 | C31: 1+1 | D31: 86 | E31: 16 | F31: 158500 | G31: RES.18.10.B.F | K31: x | M31: x | O31: x
B32: 16 | C32: 2+1 | D32: 125 | E32: 40 | G32: SOLD | I32: x | K32: x | L32: x | N32: x | O32: x
B33: 5. Kat | I33: Köşe | J33: Deniz M. | K33: Dağ M. | L33: Havuz/Peysaj M. | M33: Kuzey | N33: Güney | O33: Doğu | P33: Batı
B35: No: | C35: MODEL | D35: Brüt Alan | E35: Balkon | F35: Fiyat | G35: Durum | H35: Not
B36: 17 | C36: 2+1 | D36: 125 | E36: 40 | F36: 200000 | G36: DEPOSİTE | J36: x | K36: x | L36: x | M36: x | P36: x
B37: 18 | C37: 1+1 | D37: 86 | E37: 16 | F37: 161000 | J37: x | K37: x | M37: x | O37: x
B38: 19 | C38: 1+1 | D38: 86 | E38: 16 | F38: 161000 | J38: x | K38: x | M38: x | O38: x
B39: 20 | C39: 2+1 | D39: 125 | E39: 40 | G39: SOLD | I39: x | J39: x | K39: x | L39: x | N39: x | O39: x
B40: 6. Kat | I40: Köşe | J40: Deniz M. | K40: Dağ M. | L40: Havuz/Peysaj M. | M40: Kuzey | N40: Güney | O40: Doğu | P40: Batı
B42: No: | C42: MODEL | D42: Brüt Alan | E42: Balkon | F42: Fiyat | G42: Durum | H42: Not
B43: 21 | C43: 2+1 | D43: 125 | E43: 40 | G43: SOLD | J43: x | K43: x | L43: x | M43: x | P43: x
B44: 22 | C44: 1+1 | D44: 86 | E44: 16 | G44: SOLD | J44: x | K44: x | M44: x | O44: x
B45: 23 | C45: 1+1 | D45: 86 | E45: 16 | F45: 163500 | G45: RES.18.09.H.K | J45: x | K45: x | M45: x | O45: x
B46: 24 | C46: 2+1 | D46: 125 | E46: 40 | G46: SOLD | I46: x | J46: x | K46: x | L46: x | N46: x | O46: x
B47: 7. Kat | I47: Köşe | J47: Deniz M. | K47: Dağ M. | L47: Havuz/Peysaj M. | M47: Kuzey | N47: Güney | O47: Doğu | P47: Batı
B49: No: | C49: MODEL | D49: Brüt Alan | E49: Balkon | F49: Fiyat | G49: Durum | H49: Not
B50: 25 | C50: 2+1 | D50: 125 | E50: 40 | G50: SOLD | J50: x | K50: x | L50: x | M50: x | P50: x
B51: 26 | C51: 1+1 | D51: 86 | E51: 16 | F51: 166000 | J51: x | K51: x | M51: x | O51: x
B52: 27 | C52: 1+1 | D52: 86 | E52: 16 | G52: SOLD | J52: x | K52: x | M52: x | O52: x
B53: 28 | C53: 2+1 | D53: 125 | E53: 40 | G53: SOLD | I53: x | J53: x | K53: x | L53: x | N53: x | O53: x
B54: 8. Kat | I54: Köşe | J54: Deniz M. | K54: Dağ M. | L54: Havuz/Peysaj M. | M54: Kuzey | N54: Güney | O54: Doğu | P54: Batı
B56: No: | C56: MODEL | D56: Brüt Alan | E56: Balkon | F56: Fiyat | G56: Durum | H56: Not
B57: 29 | C57: 2+1 | D57: 125 | E57: 40 | G57: SOLD | J57: x | K57: x | L57: x | M57: x | P57: x
B58: 30 | C58: 1+1 | D58: 86 | E58: 16 | F58: 168500 | J58: x | K58: x | M58: x | O58: x
B59: 31 | C59: 1+1 | D59: 86 | E59: 16 | F59: 168500 | J59: x | K59: x | M59: x | O59: x
B60: 32 | C60: 2+1 | D60: 125 | E60: 40 | G60: SOLD | I60: x | J60: x | K60: x | L60: x | N60: x | O60: x
B61: 9. Kat | I61: Köşe | J61: Deniz M. | K61: Dağ M. | L61: Havuz/Peysaj M. | M61: Kuzey | N61: Güney | O61: Doğu | P61: Batı
B63: No: | C63: MODEL | D63: Brüt Alan | E63: Balkon | F63: Fiyat | G63: Durum | H63: Not
B64: 33 | C64: 2+1 | D64: 125 | E64: 40 | G64: SOLD | J64: x | K64: x | L64: x | M64: x | P64: x
B65: 34 | C65: 1+1 | D65: 86 | E65: 16 | F65: 171000 | J65: x | K65: x | M65: x | O65: x
B66: 35 | C66: 1+1 | D66: 86 | E66: 16 | F66: 171000 | J66: x | K66: x | M66: x | O66: x
B67: 36 | C67: 2+1 | D67: 125 | E67: 40 | G67: SOLD | I67: x | J67: x | K67: x | L67: x | N67: x | O67: x
B68: 10. Kat | I68: Köşe | J68: Deniz M. | K68: Dağ M. | L68: Havuz/Peysaj M. | M68: Kuzey | N68: Güney | O68: Doğu | P68: Batı
B70: No: | C70: MODEL | D70: Brüt Alan | E70: Balkon | F70: Fiyat | G70: Durum | H70: Not
B71: 37 | C71: 2+1 | D71: 125 | E71: 40 | G71: SOLD | J71: x | K71: x | L71: x | M71: x | P71: x
B72: 38 | C72: 1+1 | D72: 86 | E72: 16 | F72: 173500 | G72: DEPOSİT | J72: x | K72: x | M72: x | O72: x
B73: 39 | C73: 1+1 | D73: 86 | E73: 16 | G73: SOLD | J73: x | K73: x | M73: x | O73: x
B74: 40 | C74: 2+1 | D74: 125 | E74: 40 | G74: SOLD | I74: x | J74: x | K74: x | L74: x | N74: x | O74: x
B75: 11. Kat | I75: Köşe | J75: Deniz M. | K75: Dağ M. | L75: Havuz/Peysaj M. | M75: Kuzey | N75: Güney | O75: Doğu | P75: Batı
B77: No: | C77: MODEL | D77: Brüt Alan | E77: Balkon | F77: Fiyat | G77: Durum | H77: Not
B78: 41 | C78: 1+1 Pent | D78: 173 | E78: 104 (acık) | F78: GN SONS | J78: x | K78: x | L78: x | M78: x | O78: x | P78: x
B79: 42 | C79: 1+1 | D79: 89 | E79: 19 | F79: GN SONS | J79: x | K79: x | M79: x | O79: x
B80: 43 | C80: 1+1 Pent | D80: 173 | E80: 104 (acık) | F80: GN SONS | I80: x | J80: x | K80: x | L80: x | N80: x | O80: x | P80: x

Sheet (Orca-7)
A1: P | B1: Orca-7 | L1: Tarih: | N1: =TODAY() -> 2024-11-09
C3: Tip Kat Planı | H3: Penthouse Kat Planı
B5: 1. Kat | I5: Köşe | J5: Deniz M. | K5: Dağ M. | L5: Havuz/Peysaj M. | M5: Kuzey | N5: Güney | O5: Doğu | P5: Batı
B7: No: | C7: MODEL | D7: Brüt Alan | E7: Balkon | F7: Fiyat | G7: Durum | H7: Not
B8: 1 | C8: 2+1 | D8: 125 | E8: 40 | G8: SOLD | K8: x | L8: x | M8: x | P8: x
B9: 2 | C9: 1+1 | D9: 86 | E9: 16 | F9: 151000 | G9: RES.25.10.H.E | K9: x | M9: x | O9: x
B10: 3 | C10: 1+1 | D10: 86 | E10: 16 | G10: SOLD | K10: x | M10: x | O10: x
B11: 4 | C11: 2+1 | D11: 125 | E11: 40 | G11: SOLD | K11: x | L11: x | N11: x | O11: x
B12: 2. Kat | I12: Köşe | J12: Deniz M. | K12: Dağ M. | L12: Havuz/Peysaj M. | M12: Kuzey | N12: Güney | O12: Doğu | P12: Batı
B14: No: | C14: MODEL | D14: Brüt Alan | E14: Balkon | F14: Fiyat | G14: Durum | H14: Not
B15: 5 | C15: 2+1 | D15: 125 | E15: 40 | G15: SOLD | K15: x | L15: x | M15: x | P15: x
B16: 6 | C16: 1+1 | D16: 86 | E16: 16 | F16: 153500 | G16: RES 20.09.R.E | K16: x | M16: x | O16: x
B17: 7 | C17: 1+1 | D17: 86 | E17: 16 | F17: 153500 | G17: RES.20.09.R.E | K17: x | M17: x | O17: x
B18: 8 | C18: 2+1 | D18: 125 | E18: 40 | G18: SOLD | K18: x | L18: x | N18: x | O18: x
B19: 3. Kat | I19: Köşe | J19: Deniz M. | K19: Dağ M. | L19: Havuz/Peysaj M. | M19: Kuzey | N19: Güney | O19: Doğu | P19: Batı
B21: No: | C21: MODEL | D21: Brüt Alan | E21: Balkon | F21: Fiyat | G21: Durum | H21: Not
B22: 9 | C22: 2+1 | D22: 125 | E22: 40 | G22: SOLD | K22: x | L22: x | M22: x | P22: x
B23: 10 | C23: 1+1 | D23: 86 | E23: 16 | F23: 156000 | G23: SATILMASIN | H23: REŞAT | K23: x | M23: x | O23: x
B24: 11 | C24: 1+1 | D24: 86 | E24: 16 | G24: SOLD | K24: x | M24: x | O24: x
B25: 12 | C25: 2+1 | D25: 125 | E25: 40 | G25: SOLD | K25: x | L25: x | N25: x | O25: x
B26: 4. Kat | I26: Köşe | J26: Deniz M. | K26: Dağ M. | L26: Havuz/Peysaj M. | M26: Kuzey | N26: Güney | O26: Doğu | P26: Batı
B28: No: | C28: MODEL | D28: Brüt Alan | E28: Balkon | F28: Fiyat | G28: Durum | H28: Not
B29: 13 | C29: 2+1 | D29: 125 | E29: 40 | G29: SOLD | K29: x | L29: x | M29: x | P29: x
B30: 14 | C30: 1+1 | D30: 86 | E30: 16 | F30: 158500 | K30: x | M30: x | O30: x
B31: 15 | C31: 1+1 | D31: 86 | E31: 16 | F31: 158500 | K31: x | M31: x | O31: x
B32: 16 | C32: 2+1 | D32: 125 | E32: 40 | G32: SOLD | K32: x | L32: x | N32: x | O32: x
B33: 5. Kat | I33: Köşe | J33: Deniz M. | K33: Dağ M. | L33: Havuz/Peysaj M. | M33: Kuzey | N33: Güney | O33: Doğu | P33: Batı
B35: No: | C35: MODEL | D35: Brüt Alan | E35: Balkon | F35: Fiyat | G35: Durum | H35: Not
B36: 17 | C36: 2+1 | D36: 125 | E36: 40 | G36: SOLD | J36: x | K36: x | L36: x | M36: x | P36: x
B37: 18 | C37: 1+1 | D37: 86 | E37: 16 | F37: 161000 | H37: res.19.09.B.F | J37: x | K37: x | M37: x | O37: x
B38: 19 | C38: 1+1 | D38: 86 | E38: 16 | G38: SOLD | J38: x | K38: x | M38: x | O38: x
B39: 20 | C39: 2+1 | D39: 125 | E39: 40 | G39: SOLD | J39: x | K39: x | L39: x | N39: x | O39: x
B40: 6. Kat | I40: Köşe | J40: Deniz M. | K40: Dağ M. | L40: Havuz/Peysaj M. | M40: Kuzey | N40: Güney | O40: Doğu | P40: Batı
B42: No: | C42: MODEL | D42: Brüt Alan | E42: Balkon | F42: Fiyat | G42: Durum | H42: Not
B43: 21 | C43: 2+1 | D43: 125 | E43: 40 | F43: 202500 | G43: SOLD | J43: x | K43: x | L43: x | M43: x | P43: x
B44: 22 | C44: 1+1 | D44: 86 | E44: 16 | F44: 163500 | J44: x | K44: x | M44: x | O44: x
B45: 23 | C45: 1+1 | D45: 86 | E45: 16 | G45: SOLD | J45: x | K45: x | M45: x | O45: x
B46: 24 | C46: 2+1 | D46: 125 | E46: 40 | G46: SOLD | J46: x | K46: x | L46: x | N46: x | O46: x
B47: 7. Kat | I47: 1 | J47: 532 | K47: Dağ M. | L47: Havuz/Peysaj M. | M47: Kuzey | N47: Güney | O47: Doğu | P47: Batı
B49: No: | C49: MODEL | D49: Brüt Alan | E49: Balkon | F49: Fiyat | G49: Durum | H49: Not
B50: 25 | C50: 2+1 | D50: 125 | E50: 40 | G50: SOLD | J50: x | K50: x | L50: x | M50: x | P50: x
B51: 26 | C51: 1+1 | D51: 86 | E51: 16 | F51: 166000 | J51: x | K51: x | M51: x | O51: x
B52: 27 | C52: 1+1 | D52: 86 | E52: 16 | F52: 166000 | G52: DEPOSİTE | J52: x | K52: x | M52: x | O52: x
B53: 28 | C53: 2+1 | D53: 125 | E53: 40 | G53: SOLD | J53: x | K53: x | L53: x | N53: x | O53: x
B54: 8. Kat | I54: Köşe | J54: Deniz M. | K54: Dağ M. | L54: Havuz/Peysaj M. | M54: Kuzey | N54: Güney | O54: Doğu | P54: Batı
B56: No: | C56: MODEL | D56: Brüt Alan | E56: Balkon | F56: Fiyat | G56: Durum | H56: Not
B57: 29 | C57: 2+1 | D57: 125 | E57: 40 | F57: 207500 | G57: DEPOSİTE | J57: x | K57: x | L57: x | M57: x | P57: x
B58: 30 | C58: 1+1 | D58: 86 | E58: 16 | F58: 168500 | J58: x | K58: x | M58: x | O58: x
B59: 31 | C59: 1+1 | D59: 86 | E59: 16 | F59: 168500 | J59: x | K59: x | M59: x | O59: x
B60: 32 | C60: 2+1 | D60: 125 | E60: 40 | F60: 207500 | G60: SOLD | J60: x | K60: x | L60: x | N60: x | O60: x
B61: 9. Kat | I61: Köşe | J61: Deniz M. | K61: Dağ M. | L61: Havuz/Peysaj M. | M61: Kuzey | N61: Güney | O61: Doğu | P61: Batı
B63: No: | C63: MODEL | D63: Brüt Alan | E63: Balkon | F63: Fiyat | G63: Durum | H63: Not
B64: 33 | C64: 2+1 | D64: 125 | E64: 40 | G64: SOLD | J64: x | K64: x | L64: x | M64: x | P64: x
B65: 34 | C65: 1+1 | D65: 86 | E65: 16 | F65: 171000 | J65: x | K65: x | M65: x | O65: x
B66: 35 | C66: 1+1 | D66: 86 | E66: 16 | F66: 171000 | J66: x | K66: x | M66: x | O66: x
B67: 36 | C67: 2+1 | D67: 125 | E67: 40 | G67: SOLD | J67: x | K67: x | L67: x | N67: x | O67: x
B68: 10. Kat | I68: Köşe | J68: Deniz M. | K68: Dağ M. | L68: Havuz/Peysaj M. | M68: Kuzey | N68: Güney | O68: Doğu | P68: Batı
B70: No: | C70: MODEL | D70: Brüt Alan | E70: Balkon | F70: Fiyat | G70: Durum | H70: Not
B71: 37 | C71: 2+1 | D71: 125 | E71: 40 | G71: SOLD | J71: x | K71: x | L71: x | M71: x | P71: x
B72: 38 | C72: 1+1 | D72: 86 | E72: 16 | F72: 173500 | G72: RES.19.09.D.B | J72: x | K72: x | M72: x | O72: x
B73: 39 | C73: 1+1 | D73: 86 | E73: 16 | F73: 173500 | G73: RES.19.09.D.B | J73: x | K73: x | M73: x | O73: x
B74: 40 | C74: 2+1 | D74: 125 | E74: 40 | G74: SOLD | J74: x | K74: x | L74: x | N74: x | O74: x
B75: 11. Kat | I75: Köşe | J75: Deniz M. | K75: Dağ M. | L75: Havuz/Peysaj M. | M75: Kuzey | N75: Güney | O75: Doğu | P75: Batı
B77: No: | C77: MODEL | D77: Brüt Alan | E77: Balkon | F77: Fiyat | G77: Durum | H77: Not
B78: 41 | C78: 1+1 Pent | D78: 173 | E78: 104 (acık) | G78: GN SONS | J78: x | K78: x | L78: x | M78: x | O78: x | P78: x
B79: 42 | C79: 1+1 | D79: 89 | E79: 19 | G79: GN SONS | J79: x | K79: x | M79: x | O79: x
B80: 43 | C80: 1+1 Pent | D80: 173 | E80: 104 (acık) | G80: GN SONS | J80: x | K80: x | L80: x | N80: x | O80: x | P80: x

Sheet (Afalina 1)
A1: Afalina 1 | J1: 2024-09-05
B13: TİP KAT PLANI | F13: PENTHOUSE KAT PLAN
A15: Z. Kat | G15: Köşe | H15: Deniz M. | I15: Dağ M. | J15: Havuz/Peysaj M. | K15: Kuzey | L15: Güney | M15: Doğu | N15: Batı
A16: No: | B16: MODEL | C16: Brüt Alan | D16: Balkon | E16: Fiyat | F16: Not
A17: 1 | B17: Studio (C) | C17: 36 | D17: 5 | F17: SOLD | I17: x | K17: x | N17: x
A18: 2 | B18: 1+1 | C18: 103 | D18: 40 | E18: 170000 | F18: DEPOSİT | I18: x | L18: x | M18: x
A19: 3 | B19: Studio (B) | C19: 45 | D19: 8 | F19: DEPOSİT | L19: x | M19: x
A20: 4 | B20: Studio (A) | C20: 45 | D20: 8 | F20: SOLD | L20: x | M20: x
A21: 5 | B21: Studio (A) | C21: 45 | D21: 8 | E21: 99000 | F21: SOLD | L21: x | M21: x
A22: 6 | B22: Studio (B) | C22: 45 | D22: 8 | F22: SOLD | L22: x | M22: x
A23: 7 | B23: 1+1 | C23: 103 | D23: 40 | E23: 170000 | G23: x | I23: x | L23: x | N23: x
A24: 8 | B24: Studio (C) | C24: 36 | D24: 5 | E24: 90000 | F24: SOLD | I24: x | K24: x | N24: x
A25: 1. Kat | G25: Köşe | H25: Deniz M. | I25: Dağ M. | J25: Havuz/Peysaj M. | K25: Kuzey | L25: Güney | M25: Doğu | N25: Batı
A26: No: | B26: MODEL | C26: Brüt Alan | D26: Balkon | E26: Fiyat | F26: Not
A27: 9 | B27: Studio (C) | C27: 36 | D27: 5 | F27: SOLD | I27: x | K27: x | N27: x
A28: 10 | B28: 1+1 | C28: 103 | D28: 40 | E28: 172500 | F28: DEPOSİT | I28: x | L28: x | M28: x
A29: 11 | B29: Studio (B) | C29: 45 | D29: 8 | F29: SOLD | L29: x | M29: x
A30: 12 | B30: Studio (A) | C30: 45 | D30: 8 | F30: SOLD | L30: x | M30: x
A31: 13 | B31: Studio (A) | C31: 45 | D31: 8 | F31: SOLD | L31: x | M31: x
A32: 14 | B32: Studio (B) | C32: 45 | D32: 8 | E32: 101500 | F32: SOLD | L32: x | M32: x
A33: 15 | B33: 1+1 | C33: 103 | D33: 40 | E33: =E23+2500 -> 172500 | F33: SOLD | G33: x | I33: x | L33: x | N33: x
A34: 16 | B34: Studio (C) | C34: 36 | D34: 5 | F34: SOLD | I34: x | K34: x | N34: x
A35: 2. Kat | G35: Köşe | H35: Deniz M. | I35: Dağ M. | J35: Havuz/Peysaj M. | K35: Kuzey | L35: Güney | M35: Doğu | N35: Batı
A36: No: | B36: MODEL | C36: Brüt Alan | D36: Balkon | E36: Fiyat | F36: Not
A37: 17 | B37: Studio (C) | C37: 36 | D37: 5 | F37: SOLD | I37: x | K37: x | N37: x
A38: 18 | B38: 1+1 | C38: 103 | D38: 40 | E38: =E28+2500 -> 175000 | F38: DEPOSİT | I38: x | L38: x | M38: x
A39: 19 | B39: Studio (B) | C39: 45 | D39: 8 | F39: SOLD | L39: x | M39: x
A40: 20 | B40: Studio (A) | C40: 45 | D40: 8 | F40: SOLD | L40: x | M40: x
A41: 21 | B41: Studio (A) | C41: 45 | D41: 8 | F41: SOLD | L41: x | M41: x
A42: 22 | B42: Studio (B) | C42: 45 | D42: 8 | F42: SOLD | L42: x | M42: x
A43: 23 | B43: 1+1 | C43: 103 | D43: 40 | E43: =E33+2500 -> 175000 | F43: DEPOSİT | G43: x | I43: x | L43: x | N43: x
A44: 24 | B44: Studio (C) | C44: 36 | D44: 5 | F44: SOLD | I44: x | K44: x | N44: x
A45: 3. Kat | G45: Köşe | H45: Deniz M. | I45: Dağ M. | J45: Havuz/Peysaj M. | K45: Kuzey | L45: Güney | M45: Doğu | N45: Batı
A46: No: | B46: MODEL | C46: Brüt Alan | D46: Balkon | E46: Fiyat | F46: Not
A47: 25 | B47: Studio (C) | C47: 36 | D47: 5 | E47: 97500 | F47: SOLD | I47: x | K47: x | N47: x
A48: 26 | B48: 1+1 | C48: 103 | D48: 40 | E48: =E38+2500 -> 177500 | F48: RES.28.10.R.E | I48: x | L48: x | M48: x
A49: 27 | B49: Studio (B) | C49: 45 | D49: 8 | F49: S0LD | L49: x | M49: x
A50: 28 | B50: Studio (A) | C50: 45 | D50: 8 | E50: 106500 | F50: RES.06.11.Ş.K | L50: x | M50: x
A51: 29 | B51: Studio (A) | C51: 45 | D51: 8 | E51: 106500 | F51: DEPOSİT | L51: x | M51: x
A52: 30 | B52: Studio (B) | C52: 45 | D52: 8 | F52: S0LD | L52: x | M52: x
A53: 31 | B53: 1+1 | C53: 103 | D53: 40 | E53: =E43+2500 -> 177500 | F53: DEPOSİT | G53: x | I53: x | L53: x | N53: x
A54: 32 | B54: Studio (C) | C54: 36 | D54: 5 | E54: 97500 | F54: DEPOSİT | I54: x | K54: x | N54: x
A55: 4. Kat | G55: Köşe | H55: Deniz M. | I55: Dağ M. | J55: Havuz/Peysaj M. | K55: Kuzey | L55: Güney | M55: Doğu | N55: Batı
A56: No: | B56: MODEL | C56: Brüt Alan | D56: Balkon | E56: Fiyat | F56: Not
A57: 33 | B57: Studio (C) | C57: 36 | D57: 5 | F57: SOLD | I57: x | K57: x | N57: x
A58: 34 | B58: 1+1 | C58: 103 | D58: 40 | E58: =E48+2500 -> 180000 | F58: DEPOSİT | I58: x | L58: x | M58: x
A59: 35 | B59: Studio (B) | C59: 45 | D59: 8 | F59: SOLD | L59: x | M59: x
A60: 36 | B60: Studio (A) | C60: 45 | D60: 8 | F60: SOLD | L60: x | M60: x
A61: 37 | B61: Studio (A) | C61: 45 | D61: 8 | F61: SOLD | L61: x | M61: x
A62: 38 | B62: Studio (B) | C62: 45 | D62: 8 | F62: SOLD | L62: x | M62: x
A63: 39 | B63: 1+1 | C63: 103 | D63: 40 | E63: =E53+2500 -> 180000 | F63: DEPOSİT | G63: x | I63: x | L63: x | N63: x
A64: 40 | B64: Studio (C) | C64: 36 | D64: 5 | F64: SOLD | I64: x | K64: x | N64: x
A65: 5. Kat | G65: Köşe | H65: Deniz M. | I65: Dağ M. | J65: Havuz/Peysaj M. | K65: Kuzey | L65: Güney | M65: Doğu | N65: Batı
A66: No: | B66: MODEL | C66: Brüt Alan | D66: Balkon | E66: Fiyat | F66: Not
A67: 41 | B67: Studio (C) | C67: 36 | D67: 5 | E67: 102500 | F67: SOLD | I67: x | K67: x | N67: x
A68: 42 | B68: 1+1 | C68: 103 | D68: 40 | E68: =E58+2500 -> 182500 | F68: RES.28.10.R.E | I68: x | L68: x | M68: x
A69: 43 | B69: Studio (B) | C69: 45 | D69: 8 | F69: SOLD | L69: x | M69: x | Z69: .
A70: 44 | B70: Studio (A) | C70: 45 | D70: 8 | E70: 111500 | F70: DEPOSİT | L70: x | M70: x
A71: 45 | B71: Studio (A) | C71: 45 | D71: 8 | F71: SOLD | L71: x | M71: x
A72: 46 | B72: Studio (B) | C72: 45 | D72: 8 | F72: SOLD | L72: x | M72: x
A73: 47 | B73: 1+1 | C73: 103 | D73: 40 | E73: =E63+2500 -> 182500 | F73: DEPOSİT | G73: x | I73: x | L73: x | N73: x
A74: 48 | B74: Studio (C) | C74: 36 | D74: 5 | F74: SOLD | I74: x | K74: x | N74: x
A75: 6. Kat | G75: Köşe | H75: Deniz M. | I75: Dağ M. | J75: Havuz/Peysaj M. | K75: Kuzey | L75: Güney | M75: Doğu | N75: Batı
A76: No: | B76: MODEL | C76: Brüt Alan | D76: Balkon | E76: Fiyat | F76: Not
A77: 49 | B77: Studio (C) | C77: 36 | D77: 5 | E77: =E67+2500 -> 105000 | F77: SOLD | I77: x | K77: x | N77: x
A78: 50 | B78: 1+1 | C78: 103 | D78: 40 | E78: 185000 | F78: RES.28.10.D.G | I78: x | L78: x | M78: x
A79: 51 | B79: Studio (B) | C79: 45 | D79: 8 | F79: SOLD | L79: x | M79: x
A80: 52 | B80: Studio (A) | C80: 45 | D80: 8 | F80: SOLD | L80: x | M80: x
A81: 53 | B81: Studio (A) | C81: 45 | D81: 8 | E81: 114000 | F81: SOLD | L81: x | M81: x
A82: 54 | B82: Studio (B) | C82: 45 | D82: 8 | F82: SOLD | L82: x | M82: x
A83: 55 | B83: 1+1 | C83: 103 | D83: 40 | E83: =E73+2500 -> 185000 | G83: x | I83: x | L83: x | N83: x
A84: 56 | B84: Studio (C) | C84: 36 | D84: 5 | E84: 105000 | F84: RES.30.10.SH.K | I84: x | K84: x | N84: x
A85: 7. Kat | G85: Köşe | H85: Deniz M. | I85: Dağ M. | J85: Havuz/Peysaj M. | K85: Kuzey | L85: Güney | M85: Doğu | N85: Batı
A86: No: | B86: MODEL | C86: Brüt Alan | D86: Balkon | E86: Fiyat | F86: Not
A87: 57 | B87: Studio (C) | C87: 36 | D87: 5 | E87: =E77+2500 -> 107500 | F87: RES.28.10.D.G | I87: x | K87: x | N87: x
A88: 58 | B88: 1+1 | C88: 103 | D88: 40 | E88: 187500 | I88: x | L88: x | M88: x
A89: 59 | B89: Studio (B) | C89: 45 | D89: 8 | E89: 116500 | F89: DEPOSİT | L89: x | M89: x
A90: 60 | B90: Studio (A) | C90: 45 | D90: 8 | E90: 116500 | F90: SOLD | L90: x | M90: x
A91: 61 | B91: Studio (A) | C91: 45 | D91: 8 | E91: 116500 | F91: DEPOSİT | L91: x | M91: x
A92: 62 | B92: Studio (B) | C92: 45 | D92: 8 | F92: SOLD | L92: x | M92: x
A93: 63 | B93: 1+1 | C93: 103 | D93: 40 | E93: =E83+2500 -> 187500 | F93: DEPOSİT | G93: x | I93: x | L93: x | N93: x
A94: 64 | B94: Studio (C) | C94: 36 | D94: 5 | E94: 107500 | I94: x | K94: x | N94: x
A95: 8. Kat | G95: Köşe | H95: Deniz M. | I95: Dağ M. | J95: Havuz/Peysaj M. | K95: Kuzey | L95: Güney | M95: Doğu | N95: Batı
A96: No: | B96: MODEL | C96: Brüt Alan | D96: Balkon | E96: Fiyat | F96: Not
A97: 65 | B97: Studio (C) | C97: 36 | D97: 5 | E97: =E87+2500 -> 110000 | I97: x | K97: x | N97: x
A98: 66 | B98: 1+1 | C98: 103 | D98: 40 | E98: 190000 | F98: RES.25.10.L.G | I98: x | L98: x | M98: x
A99: 67 | B99: Studio (B) | C99: 45 | D99: 8 | E99: 119000 | F99: DEPOSİTE | L99: x | M99: x
A100: 68 | B100: Studio (A) | C100: 45 | D100: 8 | E100: 119000 | F100: DEPOSİTE | L100: x | M100: x
A101: 69 | B101: Studio (A) | C101: 45 | D101: 8 | F101: SOLD | L101: x | M101: x
A102: 70 | B102: Studio (B) | C102: 45 | D102: 8 | E102: 119000 | F102: DEPOSİTE | L102: x | M102: x
A103: 71 | B103: 1+1 | C103: 103 | D103: 40 | E103: =E93+2500 -> 190000 | G103: x | I103: x | L103: x | N103: x
A104: 72 | B104: Studio (C) | C104: 36 | D104: 5 | E104: 110000 | I104: x | K104: x | N104: x
A105: 9. Kat | G105: Köşe | H105: Deniz M. | I105: Dağ M. | J105: Havuz/Peysaj M. | K105: Kuzey | L105: Güney | M105: Doğu | N105: Batı
A106: No: | B106: MODEL | C106: Brüt Alan | D106: Balkon | E106: Fiyat | F106: Not
A107: 73 | B107: Studio (C) | C107: 36 | D107: 5 | E107: =E97+2500 -> 112500 | I107: x | K107: x | N107: x
A108: 74 | B108: 1+1 | C108: 103 | D108: 40 | E108: 192500 | F108: DEPOSİT | I108: x | L108: x | M108: x
A109: 75 | B109: Studio (B) | C109: 45 | D109: 8 | E109: 121500 | L109: x | M109: x
A110: 76 | B110: Studio (A) | C110: 45 | D110: 8 | E110: 121500 | L110: x | M110: x
A111: 77 | B111: Studio (A) | C111: 45 | D111: 8 | E111: 121500 | F111: RES.28.10.D.B | L111: x | M111: x
A112: 78 | B112: Studio (B) | C112: 45 | D112: 8 | F112: SOLD | L112: x | M112: x
A113: 79 | B113: 1+1 | C113: 103 | D113: 40 | E113: =E103+2500 -> 192500 | G113: x | I113: x | L113: x | N113: x
A114: 80 | B114: Studio (C) | C114: 36 | D114: 5 | E114: 112500 | I114: x | K114: x | N114: x
A115: 10. Kat | G115: Köşe | H115: Deniz M. | I115: Dağ M. | J115: Havuz/Peysaj M. | K115: Kuzey | L115: Güney | M115: Doğu | N115: Batı
A116: No: | B116: MODEL | C116: Brüt Alan | D116: Balkon | E116: Fiyat | F116: Not
A117: 81 | B117: Studio (C) | C117: 36 | D117: 5 | E117: =E107+2500 -> 115000 | I117: x | K117: x | N117: x
A118: 82 | B118: 1+1 | C118: 103 | D118: 40 | E118: 195000 | I118: x | L118: x | M118: x
A119: 83 | B119: Studio (B) | C119: 45 | D119: 8 | E119: 124000 | L119: x | M119: x
A120: 84 | B120: Studio (A) | C120: 45 | D120: 8 | E120: 124000 | F120: SOLD | L120: x | M120: x
A121: 85 | B121: Studio (A) | C121: 45 | D121: 8 | E121: 124000 | F121: DEPOSİT | L121: x | M121: x
A122: 86 | B122: Studio (B) | C122: 45 | D122: 8 | E122: 124000 | L122: x | M122: x
A123: 87 | B123: 1+1 | C123: 103 | D123: 40 | E123: =E113+2500 -> 195000 | G123: x | I123: x | L123: x | N123: x
A124: 88 | B124: Studio (C) | C124: 36 | D124: 5 | E124: 115000 | I124: x | K124: x | N124: x
A125: 11. Kat | G125: Köşe | H125: Deniz M. | I125: Dağ M. | J125: Havuz/Peysaj M. | K125: Kuzey | L125: Güney | M125: Doğu | N125: Batı
A126: No: | B126: MODEL | C126: Brüt Alan | D126: Balkon | E126: Fiyat | F126: Not
A127: 89 | B127: Studio (C) | C127: 36 | D127: 5 | E127: =E117+2500 -> 117500 | I127: x | K127: x | N127: x
A128: 90 | B128: 1+1 | C128: 103 | D128: 40 | E128: 197500 | I128: x | L128: x | M128: x
A129: 91 | B129: Studio (B) | C129: 45 | D129: 8 | E129: 126500 | L129: x | M129: x
A130: 92 | B130: Studio (A) | C130: 45 | D130: 8 | E130: 126500 | L130: x | M130: x
A131: 93 | B131: Studio (A) | C131: 45 | D131: 8 | E131: 126500 | L131: x | M131: x
A132: 94 | B132: Studio (B) | C132: 45 | D132: 8 | E132: 126500 | L132: x | M132: x
A133: 95 | B133: 1+1 | C133: 103 | D133: 40 | E133: 197500 | G133: x | I133: x | L133: x | N133: x
A134: 96 | B134: Studio (C) | C134: 36 | D134: 5 | E134: 117500 | I134: x | K134: x | N134: x
A135: 12. Kat | G135: Köşe | H135: Deniz M. | I135: Dağ M. | J135: Havuz/Peysaj M. | K135: Kuzey | L135: Güney | M135: Doğu | N135: Batı
A136: No: | B136: MODEL | C136: Brüt Alan | D136: Balkon | E136: Fiyat | F136: Not
A137: 97 | B137: Studio (C) | C137: 36 | D137: 5 | E137: =E127+2500 -> 120000 | I137: x | K137: x | N137: x
A138: 98 | B138: 1+1 | C138: 103 | D138: 40 | E138: 200000 | I138: x | L138: x | M138: x
A139: 99 | B139: Studio (B) | C139: 45 | D139: 8 | E139: 129000 | L139: x | M139: x
A140: 100 | B140: Studio (A) | C140: 45 | D140: 8 | E140: 129000 | L140: x | M140: x
A141: 101 | B141: Studio (A) | C141: 45 | D141: 8 | E141: 129000 | L141: x | M141: x
A142: 102 | B142: Studio (B) | C142: 45 | D142: 8 | E142: 129000 | L142: x | M142: x
A143: 103 | B143: 1+1 | C143: 103 | D143: 40 | E143: 200000 | F143: DEPOSİT | G143: x | I143: x | L143: x | N143: x
A144: 104 | B144: Studio (C) | C144: 36 | D144: 5 | E144: 120000 | I144: x | K144: x | N144: x
A145: 13. Kat | G145: Köşe | H145: Deniz M. | I145: Dağ M. | J145: Havuz/Peysaj M. | K145: Kuzey | L145: Güney | M145: Doğu | N145: Batı
A146: No: | B146: MODEL | C146: Brüt Alan | D146: Balkon | E146: Fiyat | F146: Not
A147: 105 | B147: Studio (C) | C147: 36 | D147: 5 | E147: =E137+2500 -> 122500 | I147: x | K147: x | N147: x
A148: 106 | B148: 1+1 | C148: 103 | D148: 40 | E148: 202500 | H148: x | I148: x | L148: x | M148: x
A149: 107 | B149: Studio (B) | C149: 45 | D149: 8 | E149: 131500 | H149: x | L149: x | M149: x
A150: 108 | B150: Studio (A) | C150: 45 | D150: 8 | E150: 131500 | H150: x | L150: x | M150: x
A151: 109 | B151: Studio (A) | C151: 45 | D151: 8 | E151: 131500 | H151: x | L151: x | M151: x
A152: 110 | B152: Studio (B) | C152: 45 | D152: 8 | E152: 131500 | F152: SOLD | H152: x | L152: x | M152: x
A153: 111 | B153: 1+1 | C153: 103 | D153: 40 | E153: 202500 | F153: DEPOSİT | G153: x | H153: x | I153: x | L153: x | N153: x
A154: 112 | B154: Studio (C) | C154: 36 | D154: 5 | E154: 122500 | I154: x | K154: x | N154: x
A155: 14. Kat | G155: Köşe | H155: Deniz M. | I155: Dağ M. | J155: Havuz/Peysaj M. | K155: Kuzey | L155: Güney | M155: Doğu | N155: Batı
A156: No: | B156: MODEL | C156: Brüt Alan | D156: Balkon | E156: Fiyat | F156: Not
A157: 113 | B157: Studio (C) | C157: 36 | D157: 5 | E157: =E147+2500 -> 125000 | H157: x | I157: x | K157: x | N157: x
A158: 114 | B158: 1+1 | C158: 103 | D158: 40 | E158: 205000 | F158: SOLD | H158: x | I158: x | L158: x | M158: x
A159: 115 | B159: Studio (B) | C159: 45 | D159: 8 | E159: 134000 | H159: x | L159: x | M159: x
A160: 116 | B160: Studio (A) | C160: 45 | D160: 8 | E160: 134000 | H160: x | L160: x | M160: x
A161: 117 | B161: Studio (A) | C161: 45 | D161: 8 | E161: 134000 | H161: x | L161: x | M161: x
A162: 118 | B162: Studio (B) | C162: 45 | D162: 8 | E162: 134000 | H162: x | L162: x | M162: x
A163: 119 | B163: 1+1 | C163: 103 | D163: 40 | E163: 205000 | F163: SOLD | G163: x | H163: x | I163: x | L163: x | N163: x
A164: 120 | B164: Studio (C) | C164: 36 | D164: 5 | E164: 125000 | H164: x | I164: x | K164: x | N164: x
A165: 15. Kat | G165: Köşe | H165: Deniz M. | I165: Dağ M. | J165: Havuz/Peysaj M. | K165: Kuzey | L165: Güney | M165: Doğu | N165: Batı
A166: No: | B166: MODEL | C166: Brüt Alan | D166: Balkon | E166: Fiyat | F166: Not
A167: 121 | B167: 1+1 Pent | C167: 189 | D167: 122 | E167: GN&SONS | H167: x | I167: x | K167: x | L167: x | M167: x | N167: x
A168: 122 | B168: Studio (A) | C168: 45 | D168: 8 | E168: GN&SONS | H168: x | L168: x | M168: x
A169: 123 | B169: Studio (A) | C169: 45 | D169: 8 | E169: GN&SONS | H169: x | L169: x | M169: x
A170: 124 | B170: 1+1 Pent | C170: 189 | D170: 122 | E170: GN&SONS | G170: x | H170: x | I170: x | K170: x | L170: x | M170: x | N170: x

Sheet (Afalina-2)
M1: Tarih: | O1: =TODAY() -> 2024-11-09
B3: Tip Kat Planı
B5: Z. Kat | I5: Köşe | J5: Deniz M. | K5: Dağ M. | L5: Havuz/Peysaj M. | M5: Kuzey | N5: Güney | O5: Doğu | P5: Batı
B7: No: | C7: MODEL | D7: Brüt Alan | E7: Balkon | F7: Fiyat | G7: Durum
B8: 1 | C8: Studio (C) | D8: 36 | E8: 5 | G8: SOLD | L8: x | O8: x
B9: 2 | C9: 1+1 | D9: 103 | E9: 40 | G9: SOLD | L9: x | N9: x | O9: x | P9: x
B10: 3 | C10: Studio (B) | D10: 45 | E10: 8 | G10: SOLD | N10: x | P10: x
B11: 4 | C11: Studio (A) | D11: 45 | E11: 8 | G11: SOLD | N11: x | P11: x
B12: 5 | C12: Studio (A) | D12: 45 | E12: 8 | G12: SOLD | N12: x | P12: x
B13: 6 | C13: Studio (B) | D13: 45 | E13: 8 | G13: SOLD | N13: x | P13: x
B14: 7 | C14: 1+1 | D14: 103 | E14: 40 | G14: SOLD | L14: x | M14: x | O14: x | P14: x
B15: 8 | C15: Studio (C) | D15: 36 | E15: 5 | G15: SOLD | L15: x | O15: x
B16: 1. Kat | I16: Köşe | J16: Deniz M. | K16: Dağ M. | L16: Havuz/Peysaj M. | M16: Kuzey | N16: Güney | O16: Doğu | P16: Batı
B18: No: | C18: MODEL | D18: Brüt Alan | E18: Balkon | F18: Fiyat | G18: Durum
B19: 9 | C19: Studio (C) | D19: 36 | E19: 5 | G19: SOLD | L19: x | O19: x
B20: 10 | C20: 1+1 | D20: 103 | E20: 40 | G20: SOLD | L20: x | N20: x | O20: x | P20: x
B21: 11 | C21: Studio (B) | D21: 45 | E21: 8 | G21: SOLD | N21: x | P21: x
B22: 12 | C22: Studio (A) | D22: 45 | E22: 8 | G22: SOLD | N22: x | P22: x
B23: 13 | C23: Studio (A) | D23: 45 | E23: 8 | G23: SOLD | N23: x | P23: x
B24: 14 | C24: Studio (B) | D24: 45 | E24: 8 | G24: SOLD | N24: x | P24: x
B25: 15 | C25: 1+1 | D25: 103 | E25: 40 | G25: SOLD | L25: x | M25: x | O25: x | P25: x
B26: 16 | C26: Studio (C) | D26: 36 | E26: 5 | G26: SOLD | L26: x | O26: x
B27: 2. Kat | I27: Köşe | J27: Deniz M. | K27: Dağ M. | L27: Havuz/Peysaj M. | M27: Kuzey | N27: Güney | O27: Doğu | P27: Batı
B29: No: | C29: MODEL | D29: Brüt Alan | E29: Balkon | F29: Fiyat | G29: Durum
B30: 17 | C30: Studio (C) | D30: 36 | E30: 5 | F30: 95000 | G30: DEPOSİT | L30: x | O30: x
B31: 18 | C31: 1+1 | D31: 103 | E31: 40 | G31: SOLD | L31: x | N31: x | O31: x | P31: x
B32: 19 | C32: Studio (B) | D32: 45 | E32: 8 | G32: SOLD | N32: x | P32: x
B33: 20 | C33: Studio (A) | D33: 45 | E33: 8 | G33: SOLD | N33: x | P33: x
B34: 21 | C34: Studio (A) | D34: 45 | E34: 8 | G34: SOLD | N34: x | P34: x
B35: 22 | C35: Studio (B) | D35: 45 | E35: 8 | F35: 103000 | G35: DEPOSİT | N35: x | P35: x
B36: 23 | C36: 1+1 | D36: 103 | E36: 40 | G36: DEPOSİT | L36: x | M36: x | O36: x | P36: x
B37: 24 | C37: Studio (C) | D37: 36 | E37: 5 | G37: SOLD | L37: x | O37: x
B38: 3. Kat | I38: Köşe | J38: Deniz M. | K38: Dağ M. | L38: Havuz/Peysaj M. | M38: Kuzey | N38: Güney | O38: Doğu | P38: Batı
B40: No: | C40: MODEL | D40: Brüt Alan | E40: Balkon | F40: Fiyat | G40: Durum
B41: 25 | C41: Studio (C) | D41: 36 | E41: 5 | G41: SOLD | L41: x | O41: x
B42: 26 | C42: 1+1 | D42: 103 | E42: 40 | F42: 171500 | L42: x | N42: x | O42: x | P42: x
B43: 27 | C43: Studio (B) | D43: 45 | E43: 8 | F43: 102500 | G43: DEPOSİT | N43: x | P43: x
B44: 28 | C44: Studio (A) | D44: 45 | E44: 8 | F44: 105500 | G44: DEPOSİT | N44: x | P44: x
B45: 29 | C45: Studio (A) | D45: 45 | E45: 8 | G45: SOLD | N45: x | P45: x
B46: 30 | C46: Studio (B) | D46: 45 | E46: 8 | G46: SOLD | N46: x | P46: x
B47: 31 | C47: 1+1 | D47: 103 | E47: 40 | G47: DEPOSİT | L47: x | M47: x | O47: x | P47: x
B48: 32 | C48: Studio (C) | D48: 36 | E48: 5 | G48: SOLD | L48: x | O48: x
B49: 4. Kat | I49: Köşe | J49: Deniz M. | K49: Dağ M. | L49: Havuz/Peysaj M. | M49: Kuzey | N49: Güney | O49: Doğu | P49: Batı
B51: No: | C51: MODEL | D51: Brüt Alan | E51: Balkon | F51: Fiyat | G51: Durum
B52: 33 | C52: Studio (C) | D52: 36 | E52: 5 | G52: SOLD | L52: x | O52: x
B53: 34 | C53: 1+1 | D53: 103 | E53: 40 | F53: 174000 | G53: DEPOSİT | L53: x | N53: x | O53: x | P53: x
B54: 35 | C54: Studio (B) | D54: 45 | E54: 8 | G54: SOLD | N54: x | P54: x
B55: 36 | C55: Studio (A) | D55: 45 | E55: 8 | G55: SOLD | N55: x | P55: x
B56: 37 | C56: Studio (A) | D56: 45 | E56: 8 | G56: SOLD | N56: x | P56: x
B57: 38 | C57: Studio (B) | D57: 45 | E57: 8 | G57: SOLD | N57: x | P57: x
B58: 39 | C58: 1+1 | D58: 103 | E58: 40 | G58: SOLD | L58: x | M58: x | O58: x | P58: x
B59: 40 | C59: Studio (C) | D59: 36 | E59: 5 | G59: SOLD | L59: x | O59: x
B60: 5. Kat | I60: Köşe | J60: Deniz M. | K60: Dağ M. | L60: Havuz/Peysaj M. | M60: Kuzey | N60: Güney | O60: Doğu | P60: Batı
B62: No: | C62: MODEL | D62: Brüt Alan | E62: Balkon | F62: Fiyat | G62: Durum
B63: 41 | C63: Studio (C) | D63: 36 | E63: 5 | G63: SOLD | L63: x | O63: x
B64: 42 | C64: 1+1 | D64: 103 | E64: 40 | F64: 176500 | G64: DEPOSİT | L64: x | N64: x | O64: x | P64: x
B65: 43 | C65: Studio (B) | D65: 45 | E65: 8 | G65: SOLD | N65: x | P65: x
B66: 44 | C66: Studio (A) | D66: 45 | E66: 8 | G66: SOLD | N66: x | P66: x
B67: 45 | C67: Studio (A) | D67: 45 | E67: 8 | G67: SOLD | N67: x | P67: x
B68: 46 | C68: Studio (B) | D68: 45 | E68: 8 | G68: SOLD | N68: x | P68: x
B69: 47 | C69: 1+1 | D69: 103 | E69: 40 | G69: SOLD | L69: x | M69: x | O69: x | P69: x
B70: 48 | C70: Studio (C) | D70: 36 | E70: 5 | G70: SOLD | L70: x | O70: x
B71: 6. Kat | I71: Köşe | J71: Deniz M. | K71: Dağ M. | L71: Havuz/Peysaj M. | M71: Kuzey | N71: Güney | O71: Doğu | P71: Batı
B73: No: | C73: MODEL | D73: Brüt Alan | E73: Balkon | F73: Fiyat | G73: Durum
B74: 49 | C74: Studio (C) | D74: 36 | E74: 5 | G74: SOLD | L74: x | O74: x
B75: 50 | C75: 1+1 | D75: 103 | E75: 40 | F75: 179000 | L75: x | N75: x | O75: x | P75: x
B76: 51 | C76: Studio (B) | D76: 45 | E76: 8 | F76: 110000 | G76: RES.05.11.D.G | N76: x | P76: x
B77: 52 | C77: Studio (A) | D77: 45 | E77: 8 | F77: 113000 | G77: RES.05.11.D.G | N77: x | P77: x
B78: 53 | C78: Studio (A) | D78: 45 | E78: 8 | F78: 113000 | G78: RES.05.11.D.G | N78: x | P78: x
B79: 54 | C79: Studio (B) | D79: 45 | E79: 8 | F79: 113000 | G79: RES.05.11.D.G | N79: x | P79: x
B80: 55 | C80: 1+1 | D80: 103 | E80: 40 | G80: SOLD | L80: x | M80: x | O80: x | P80: x
B81: 56 | C81: Studio (C) | D81: 36 | E81: 5 | G81: SOLD | L81: x | O81: x
B82: 7. Kat | I82: Köşe | J82: Deniz M. | K82: Dağ M. | L82: Havuz/Peysaj M. | M82: Kuzey | N82: Güney | O82: Doğu | P82: Batı
B84: No: | C84: MODEL | D84: Brüt Alan | E84: Balkon | F84: Fiyat | G84: Durum
B85: 57 | C85: Studio (C) | D85: 36 | E85: 5 | G85: SOLD | L85: x | O85: x
B86: 58 | C86: 1+1 | D86: 103 | E86: 40 | F86: 181500 | L86: x | N86: x | O86: x | P86: x
B87: 59 | C87: Studio (B) | D87: 45 | E87: 8 | G87: SOLD | N87: x | P87: x
B88: 60 | C88: Studio (A) | D88: 45 | E88: 8 | G88: SOLD | N88: x | P88: x
B89: 61 | C89: Studio (A) | D89: 45 | E89: 8 | G89: SOLD | N89: x | P89: x
B90: 62 | C90: Studio (B) | D90: 45 | E90: 8 | G90: SOLD | N90: x | P90: x
B91: 63 | C91: 1+1 | D91: 103 | E91: 40 | G91: SOLD | L91: x | M91: x | O91: x | P91: x
B92: 64 | C92: Studio (C) | D92: 36 | E92: 5 | G92: SOLD | L92: x | O92: x
B93: 8. Kat | I93: Köşe | J93: Deniz M. | K93: Dağ M. | L93: Havuz/Peysaj M. | M93: Kuzey | N93: Güney | O93: Doğu | P93: Batı
B95: No: | C95: MODEL | D95: Brüt Alan | E95: Balkon | F95: Fiyat | G95: Durum
B96: 65 | C96: Studio (C) | D96: 36 | E96: 5 | G96: SOLD | L96: x | O96: x
B97: 66 | C97: 1+1 | D97: 103 | E97: 40 | F97: 184000 | L97: x | N97: x | O97: x | P97: x
B98: 67 | C98: Studio (B) | D98: 45 | E98: 8 | F98: 115000 | N98: x | P98: x
B99: 68 | C99: Studio (A) | D99: 45 | E99: 8 | F99: 118000 | N99: x | P99: x
B100: 69 | C100: Studio (A) | D100: 45 | E100: 8 | F100: 118000 | N100: x | P100: x
B101: 70 | C101: Studio (B) | D101: 45 | E101: 8 | G101: SOLD | N101: x | P101: x
B102: 71 | C102: 1+1 | D102: 103 | E102: 40 | G102: SOLD | L102: x | M102: x | O102: x | P102: x
B103: 72 | C103: Studio (C) | D103: 36 | E103: 5 | G103: SOLD | L103: x | O103: x
B104: 9. Kat | I104: Köşe | J104: Deniz M. | K104: Dağ M. | L104: Havuz/Peysaj M. | M104: Kuzey | N104: Güney | O104: Doğu | P104: Batı
B106: No: | C106: MODEL | D106: Brüt Alan | E106: Balkon | F106: Fiyat | G106: Durum
B107: 73 | C107: Studio (C) | D107: 36 | E107: 5 | F107: 112500 | L107: x | O107: x
B108: 74 | C108: 1+1 | D108: 103 | E108: 40 | F108: 186500 | L108: x | N108: x | O108: x | P108: x
B109: 75 | C109: Studio (B) | D109: 45 | E109: 8 | G109: DEPOSİT | N109: x | P109: x
B110: 76 | C110: Studio (A) | D110: 45 | E110: 8 | G110: SOLD | N110: x | P110: x
B111: 77 | C111: Studio (A) | D111: 45 | E111: 8 | G111: SOLD | N111: x | P111: x
B112: 78 | C112: Studio (B) | D112: 45 | E112: 8 | G112: SOLD | N112: x | P112: x
B113: 79 | C113: 1+1 | D113: 103 | E113: 40 | F113: 186500 | L113: x | M113: x | O113: x | P113: x
B114: 80 | C114: Studio (C) | D114: 36 | E114: 5 | G114: SOLD | L114: x | O114: x
B115: 10. Kat | I115: Köşe | J115: Deniz M. | K115: Dağ M. | L115: Havuz/Peysaj M. | M115: Kuzey | N115: Güney | O115: Doğu | P115: Batı
B117: No: | C117: MODEL | D117: Brüt Alan | E117: Balkon | F117: Fiyat | G117: Durum
B118: 81 | C118: Studio (C) | D118: 36 | E118: 5 | F118: 115000 | G118: DEPOSİT | L118: x | O118: x
B119: 82 | C119: 1+1 | D119: 103 | E119: 40 | F119: 189000 | L119: x | N119: x | O119: x | P119: x
B120: 83 | C120: Studio (B) | D120: 45 | E120: 8 | G120: SOLD | N120: x | P120: x
B121: 84 | C121: Studio (A) | D121: 45 | E121: 8 | G121: SOLD | N121: x | P121: x
B122: 85 | C122: Studio (A) | D122: 45 | E122: 8 | G122: SOLD | N122: x | P122: x
B123: 86 | C123: Studio (B) | D123: 45 | E123: 8 | G123: SOLD | N123: x | P123: x
B124: 87 | C124: 1+1 | D124: 103 | E124: 40 | G124: SOLD | L124: x | M124: x | O124: x | P124: x
B125: 88 | C125: Studio (C) | D125: 36 | E125: 5 | G125: SOLD | L125: x | O125: x
B126: 11. Kat | I126: Köşe | J126: Deniz M. | K126: Dağ M. | L126: Havuz/Peysaj M. | M126: Kuzey | N126: Güney | O126: Doğu | P126: Batı
B128: No: | C128: MODEL | D128: Brüt Alan | E128: Balkon | F128: Fiyat | G128: Durum
B129: 89 | C129: Studio (C) | D129: 36 | E129: 5 | G129: SOLD | L129: x | O129: x
B130: 90 | C130: 1+1 | D130: 103 | E130: 40 | F130: 191500 | L130: x | N130: x | O130: x | P130: x
B131: 91 | C131: Studio (B) | D131: 45 | E131: 8 | F131: 128000 | G131: SOLD | N131: x | P131: x
B132: 92 | C132: Studio (A) | D132: 45 | E132: 8 | F132: 128000 | N132: x | P132: x
B133: 93 | C133: Studio (A) | D133: 45 | E133: 8 | F133: 125500 | G133: DEPOSİT | N133: x | P133: x
B134: 94 | C134: Studio (B) | D134: 45 | E134: 8 | G134: SOLD | N134: x | P134: x
B135: 95 | C135: 1+1 | D135: 103 | E135: 40 | F135: 191500 | G135: DEPOSİT | L135: x | M135: x | O135: x | P135: x
B136: 96 | C136: Studio (C) | D136: 36 | E136: 5 | G136: SOLD | L136: x | O136: x
B137: 12. Kat | I137: Köşe | J137: Deniz M. | K137: Dağ M. | L137: Havuz/Peysaj M. | M137: Kuzey | N137: Güney | O137: Doğu | P137: Batı
B139: No: | C139: MODEL | D139: Brüt Alan | E139: Balkon | F139: Fiyat | G139: Durum
B140: 97 | C140: Studio (C) | D140: 36 | E140: 5 | G140: SOLD | L140: x | O140: x
B141: 98 | C141: 1+1 | D141: 103 | E141: 40 | F141: 194000 | L141: x | N141: x | O141: x | P141: x
B142: 99 | C142: Studio (B) | D142: 45 | E142: 8 | F142: 130500 | N142: x | P142: x
B143: 100 | C143: Studio (A) | D143: 45 | E143: 8 | F143: 130500 | N143: x | P143: x
B144: 101 | C144: Studio (A) | D144: 45 | E144: 8 | G144: SOLD
B145: 102 | C145: Studio (B) | D145: 45 | E145: 8 | G145: SOLD
B146: 103 | C146: 1+1 | D146: 103 | E146: 40 | G146: SOLD | L146: x
B147: 104 | C147: Studio (C) | D147: 36 | E147: 5 | F147: 120000 | G147: DEPOSİT | L147: x
B148: 13. Kat | I148: Köşe | J148: Deniz M. | K148: Dağ M. | L148: Havuz/Peysaj M. | M148: Kuzey | N148: Güney | O148: Doğu | P148: Batı
B150: No: | C150: MODEL | D150: Brüt Alan | E150: Balkon | F150: Fiyat | G150: Durum
B151: 105 | C151: Studio (C) | D151: 36 | E151: 5 | F151: 122500 | J151: x | K151: x | L151: x | O151: x
B152: 106 | C152: 1+1 | D152: 103 | E152: 40 | F152: 196500 | J152: x | K152: x | L152: x | N152: x | O152: x | P152: x
B153: 107 | C153: Studio (B) | D153: 45 | E153: 8 | F153: 133000 | K153: x | N153: x | P153: x
B154: 108 | C154: Studio (A) | D154: 45 | E154: 8 | F154: 133000 | K154: x | N154: x | P154: x
B155: 109 | C155: Studio (A) | D155: 45 | E155: 8 | F155: 130500 | K155: x | N155: x | P155: x
B156: 110 | C156: Studio (B) | D156: 45 | E156: 8 | G156: SOLD | K156: x | N156: x | P156: x
B157: 111 | C157: 1+1 | D157: 103 | E157: 40 | F157: 196500 | G157: DEPOSİT | J157: x | K157: x | L157: x | O157: x
B158: 112 | C158: Studio (C) | D158: 36 | E158: 5 | F158: 124500 | J158: x | K158: x | L158: x | O158: x | S158: ,
B159: 14. Kat | I159: Köşe | J159: Deniz M. | K159: Dağ M. | L159: Havuz/Peysaj M. | M159: Kuzey | N159: Güney | O159: Doğu | P159: Batı
B161: No: | C161: MODEL | D161: Brüt Alan | E161: Balkon | F161: Fiyat | G161: Durum
B162: 113 | C162: Studio (C) | D162: 36 | E162: 5 | F162: 125000 | G162: DEPOSİTE | J162: x | K162: x | L162: x | O162: x
B163: 114 | C163: 1+1 | D163: 103 | E163: 40 | F163: 199000 | J163: x | K163: x | L163: x | N163: x | O163: x | P163: x
B164: 115 | C164: Studio (B) | D164: 45 | E164: 8 | F164: 135500 | K164: x | N164: x | P164: x
B165: 116 | C165: Studio (A) | D165: 45 | E165: 8 | F165: 135500 | K165: x | N165: x | P165: x
B166: 117 | C166: Studio (A) | D166: 45 | E166: 8 | F166: 133000 | K166: x | N166: x | P166: x
B167: 118 | C167: Studio (B) | D167: 45 | E167: 8 | G167: SOLD | K167: x | N167: x | P167: x
B168: 119 | C168: 1+1 | D168: 103 | E168: 40 | G168: SOLD | J168: x | K168: x | L168: x | O168: x
B169: 120 | C169: Studio (C) | D169: 36 | E169: 5 | F169: 127000 | J169: x | K169: x | L169: x | O169: x
B170: 15. Kat | I170: Köşe | J170: Deniz M. | K170: Dağ M. | L170: Havuz/Peysaj M. | M170: Kuzey | N170: Güney | O170: Doğu | P170: Batı
B172: No: | C172: MODEL | D172: Brüt Alan | E172: Balkon | F172: Fiyat | G172: Durum
B173: 121 | C173: 1+1 Pent | D173: 189 | E173: 122 | G173: GN SONS | J173: x | K173: x | L173: x | N173: x | O173: x | P173: x
B174: 122 | C174: Studio (A) | D174: 45 | E174: 8 | G174: GN SONS | J174: x | P174: x
B175: 123 | C175: Studio (A) | D175: 45 | E175: 8 | G175: GN SONS | J175: x | P175: x
B176: 124 | C176: 1+1 Pent | D176: 189 | E176: 122 | G176: GN SONS | J176: x | K176: x | L176: x | O176: x | P176: x

Sheet (Whale-2)
K1: Tarih: | M1: =TODAY() -> 2024-11-09
B3: Tip Kat Planı | F3: Penthouse Kat Planı
A5: Z. Kat | H5: Köşe | I5: Deniz M. | J5: Dağ M. | K5: Havuz/Peysaj M. | L5: Kuzey | M5: Güney | N5: Doğu | O5: Batı
A7: No: | B7: MODEL | C7: Brüt Alan | D7: Balkon | E7: Fiyat | F7: Durum | G7: Not
A8: 1 | B8: Studio (C) | C8: 36 | D8: 5 | F8: SOLD | J8: x | K8: x | L8: x
A9: 2 | B9: 1+1 | C9: 103 | D9: 40 | F9: SOLD | H9: x | J9: x | K9: x | L9: x | M9: x | O9: x
A10: 3 | B10: Studio (B) | C10: 45 | D10: 8 | F10: DEPOSİT | M10: x | N10: x
A11: 4 | B11: Studio (A) | C11: 45 | D11: 8 | F11: SOLD | M11: x | N11: x
A12: 5 | B12: Studio (A) | C12: 45 | D12: 8 | F12: SOLD | M12: x | N12: x
A13: 6 | B13: Studio (B) | C13: 45 | D13: 8 | F13: SOLD | M13: x | N13: x
A14: 7 | B14: 1+1 | C14: 103 | D14: 40 | F14: SOLD | H14: x | J14: x | K14: x | L14: x | M14: x | N14: x
A15: 8 | B15: Studio (C) | C15: 36 | D15: 5 | E15: 96500 | F15: DEPOSİT | J15: x | K15: x | L15: x
A16: 1. Kat | H16: Köşe | I16: Deniz M. | J16: Dağ M. | K16: Havuz/Peysaj M. | L16: Kuzey | M16: Güney | O16: Batı
A18: No: | B18: MODEL | C18: Brüt Alan | D18: Balkon | E18: Fiyat | F18: Durum | G18: Not
A19: 9 | B19: Studio (C) | C19: 36 | D19: 5 | F19: SOLD | J19: x | K19: x | L19: x
A20: 10 | B20: 1+1 | C20: 103 | D20: 40 | F20: SOLD | H20: x | J20: x | K20: x | L20: x | M20: x | O20: x
A21: 11 | B21: Studio (B) | C21: 45 | D21: 8 | F21: SOLD | M21: x | N21: x
A22: 12 | B22: Studio (A) | C22: 45 | D22: 8 | F22: SOLD | M22: x | N22: x
A23: 13 | B23: Studio (A) | C23: 45 | D23: 8 | F23: SOLD | M23: x | N23: x
A24: 14 | B24: Studio (B) | C24: 45 | D24: 8 | F24: SOLD | M24: x | N24: x
A25: 15 | B25: 1+1 | C25: 103 | D25: 40 | F25: DEPOSİT | H25: x | J25: x | K25: x | L25: x | M25: x | N25: x
A26: 16 | B26: Studio (C) | C26: 36 | D26: 5 | F26: SOLD | J26: x | K26: x | L26: x
A27: 2. Kat | H27: Köşe | I27: Deniz M. | J27: Dağ M. | K27: Havuz/Peysaj M. | L27: Kuzey | M27: Güney | N27: Doğu | O27: Batı
A29: No: | B29: MODEL | C29: Brüt Alan | D29: Balkon | E29: Fiyat | F29: Durum | G29: Not
A30: 17 | B30: Studio (C) | C30: 36 | D30: 5 | F30: SOLD | J30: x | K30: x | L30: x
A31: 18 | B31: 1+1 | C31: 103 | D31: 40 | F31: SOLD | H31: x | J31: x | K31: x | L31: x | M31: x | O31: x
A32: 19 | B32: Studio (B) | C32: 45 | D32: 8 | F32: SOLD | M32: x | N32: x
A33: 20 | B33: Studio (A) | C33: 45 | D33: 8 | F33: SOLD | M33: x | N33: x
A34: 21 | B34: Studio (A) | C34: 45 | D34: 8 | E34: 110000 | F34: RES.24.09.B.F | M34: x | N34: x
A35: 22 | B35: Studio (B) | C35: 45 | D35: 8 | F35: SOLD | M35: x | N35: x
A36: 23 | B36: 1+1 | C36: 103 | D36: 40 | F36: SOLD | H36: x | J36: x | K36: x | L36: x | M36: x | N36: x
A37: 24 | B37: Studio (C) | C37: 36 | D37: 5 | F37: SOLD | J37: x | K37: x | L37: x
A38: 3. Kat | H38: Köşe | I38: Deniz M. | J38: Dağ M. | K38: Havuz/Peysaj M. | L38: Kuzey | M38: Güney | N38: Doğu | O38: Batı
A40: No: | B40: MODEL | C40: Brüt Alan | D40: Balkon | E40: Fiyat | F40: Durum | G40: Not
A41: 25 | B41: Studio (C) | C41: 36 | D41: 5 | F41: DEPOSİT | J41: x | K41: x | L41: x
A42: 26 | B42: 1+1 | C42: 103 | D42: 40 | F42: SOLD | H42: x | J42: x | K42: x | L42: x | M42: x | O42: x
A43: 27 | B43: Studio (B) | C43: 45 | D43: 8 | F43: DEPOSİT | M43: x | N43: x
A44: 28 | B44: Studio (A) | C44: 45 | D44: 8 | F44: SOLD | M44: x | N44: x
A45: 29 | B45: Studio (A) | C45: 45 | D45: 8 | F45: SOLD | M45: x | N45: x
A46: 30 | B46: Studio (B) | C46: 45 | D46: 8 | E46: 112500 | F46: RES.16.09.B.F | M46: x | N46: x
A47: 31 | B47: 1+1 | C47: 103 | D47: 40 | F47: SOLD | H47: x | J47: x | K47: x | L47: x | M47: x | N47: x
A48: 32 | B48: Studio (C) | C48: 36 | D48: 5 | F48: SOLD | J48: x | K48: x | L48: x
A49: 4. Kat | H49: Köşe | I49: Deniz M. | J49: Dağ M. | K49: Havuz/Peysaj M. | L49: Kuzey | M49: Güney | N49: Doğu | O49: Batı
A51: No: | B51: MODEL | C51: Brüt Alan | D51: Balkon | E51: Fiyat | F51: Durum | G51: Not
A52: 33 | B52: Studio (C) | C52: 36 | D52: 5 | F52: SOLD | J52: x | K52: x | L52: x
A53: 34 | B53: 1+1 | C53: 103 | D53: 40 | F53: SOLD | H53: x | J53: x | K53: x | L53: x | M53: x | O53: x
A54: 35 | B54: Studio (B) | C54: 45 | D54: 8 | F54: SOLD | M54: x | N54: x
A55: 36 | B55: Studio (A) | C55: 45 | D55: 8 | M55: x | N55: x
A56: 37 | B56: Studio (A) | C56: 45 | D56: 8 | F56: DEPOZIT | M56: x | N56: x
A57: 38 | B57: Studio (B) | C57: 45 | D57: 8 | F57: SOLD | M57: x | N57: x
A58: 39 | B58: 1+1 | C58: 103 | D58: 40 | F58: SOLD | H58: x | J58: x | K58: x | L58: x | M58: x | N58: x
A59: 40 | B59: Studio (C) | C59: 36 | D59: 5 | F59: DEPOZIT | J59: x | K59: x | L59: x
A60: 5. Kat | H60: Köşe | I60: Deniz M. | J60: Dağ M. | K60: Havuz/Peysaj M. | L60: Kuzey | M60: Güney | N60: Doğu | O60: Batı
A62: No: | B62: MODEL | C62: Brüt Alan | D62: Balkon | E62: Fiyat | F62: Durum | G62: Not
A63: 41 | B63: Studio (C) | C63: 36 | D63: 5 | F63: SOLD | J63: x | K63: x | L63: x
A64: 42 | B64: 1+1 | C64: 103 | D64: 40 | E64: 171000 | F64: DEPOZIT | H64: x | J64: x | K64: x | L64: x | M64: x | O64: x
A65: 43 | B65: Studio (B) | C65: 45 | D65: 8 | F65: SOLD | M65: x | N65: x
A66: 44 | B66: Studio (A) | C66: 45 | D66: 8 | F66: SOLD | M66: x | N66: x
A67: 45 | B67: Studio (A) | C67: 45 | D67: 8 | F67: SOLD | M67: x | N67: x
A68: 46 | B68: Studio (B) | C68: 45 | D68: 8 | F68: SOLD | M68: x | N68: x
A69: 47 | B69: 1+1 | C69: 103 | D69: 40 | F69: SOLD | H69: x | J69: x | K69: x | L69: x | M69: x | N69: x
A70: 48 | B70: Studio (C) | C70: 36 | D70: 5 | F70: SOLD | J70: x | K70: x | L70: x
A71: 6. Kat | H71: Köşe | I71: Deniz M. | J71: Dağ M. | K71: Havuz/Peysaj M. | L71: Kuzey | M71: Güney | N71: Doğu | O71: Batı
A73: No: | B73: MODEL | C73: Brüt Alan | D73: Balkon | E73: Fiyat | F73: Durum | G73: Not
A74: 49 | B74: Studio (C) | C74: 36 | D74: 5 | F74: DEPOZIT | J74: x | K74: x | L74: x
A75: 50 | B75: 1+1 | C75: 103 | D75: 40 | E75: 173500 | F75: SOLD | H75: x | J75: x | K75: x | L75: x | M75: x | O75: x
A76: 51 | B76: Studio (B) | C76: 45 | D76: 8 | F76: SOLD | M76: x | N76: x
A77: 52 | B77: Studio (A) | C77: 45 | D77: 8 | F77: DEPOZIT | M77: x | N77: x
A78: 53 | B78: Studio (A) | C78: 45 | D78: 8 | F78: SOLD | M78: x | N78: x
A79: 54 | B79: Studio (B) | C79: 45 | D79: 8 | F79: SOLD | M79: x | N79: x
A80: 55 | B80: 1+1 | C80: 103 | D80: 40 | F80: SOLD | H80: x | J80: x | K80: x | L80: x | M80: x | N80: x
A81: 56 | B81: Studio (C) | C81: 36 | D81: 5 | F81: SOLD | J81: x | K81: x | L81: x
A82: 7. Kat | H82: Köşe | I82: Deniz M. | J82: Dağ M. | K82: Havuz/Peysaj M. | L82: Kuzey | M82: Güney | N82: Doğu | O82: Batı
A84: No: | B84: MODEL | C84: Brüt Alan | D84: Balkon | E84: Fiyat | F84: Durum | G84: Not
A85: 57 | B85: Studio (C) | C85: 36 | D85: 5 | E85: 115000 | J85: x | K85: x | L85: x
A86: 58 | B86: 1+1 | C86: 103 | D86: 40 | E86: 176000 | F86: DEPOSİT | H86: x | J86: x | K86: x | L86: x | M86: x | O86: x
A87: 59 | B87: Studio (B) | C87: 45 | D87: 8 | F87: SOLD | M87: x | N87: x
A88: 60 | B88: Studio (A) | C88: 45 | D88: 8 | F88: SOLD | M88: x | N88: x
A89: 61 | B89: Studio (A) | C89: 45 | D89: 8 | F89: SOLD | M89: x | N89: x
A90: 62 | B90: Studio (B) | C90: 45 | D90: 8 | F90: SOLD | M90: x | N90: x
A91: 63 | B91: 1+1 | C91: 103 | D91: 40 | F91: SOLD | H91: x | J91: x | K91: x | L91: x | M91: x | N91: x
A92: 64 | B92: Studio (C) | C92: 36 | D92: 5 | F92: SOLD | J92: x | K92: x | L92: x
A93: 8. Kat | H93: Köşe | I93: Deniz M. | J93: Dağ M. | K93: Havuz/Peysaj M. | L93: Kuzey | M93: Güney | N93: Doğu | O93: Batı
A95: No: | B95: MODEL | C95: Brüt Alan | D95: Balkon | E95: Fiyat | F95: Durum | G95: Not
A96: 65 | B96: Studio (C) | C96: 36 | D96: 5 | F96: SOLD | J96: x | K96: x | L96: x
A97: 66 | B97: 1+1 | C97: 103 | D97: 40 | E97: 178500 | F97: DEPOSİT | H97: x | J97: x | K97: x | L97: x | M97: x | O97: x
A98: 67 | B98: Studio (B) | C98: 45 | D98: 8 | F98: SOLD | M98: x | N98: x
A99: 68 | B99: Studio (A) | C99: 45 | D99: 8 | F99: DEPOSİT | M99: x | N99: x
A100: 69 | B100: Studio (A) | C100: 45 | D100: 8 | F100: SOLD | M100: x | N100: x
A101: 70 | B101: Studio (B) | C101: 45 | D101: 8 | F101: DEPOZITE | M101: x | N101: x
A102: 71 | B102: 1+1 | C102: 103 | D102: 40 | E102: 178500 | F102: SOLD | H102: x | J102: x | K102: x | L102: x | M102: x | N102: x
A103: 72 | B103: Studio (C) | C103: 36 | D103: 5 | E103: 119500 | J103: x | K103: x | L103: x
A104: 9. Kat | H104: Köşe | I104: Deniz M. | J104: Dağ M. | K104: Havuz/Peysaj M. | L104: Kuzey | M104: Güney | N104: Doğu | O104: Batı
A106: No: | B106: MODEL | C106: Brüt Alan | D106: Balkon | E106: Fiyat | F106: Durum | G106: Not
A107: 73 | B107: Studio (C) | C107: 36 | D107: 5 | E107: 120000 | J107: x | K107: x | L107: x
A108: 74 | B108: 1+1 | C108: 103 | D108: 40 | E108: 181000 | F108: DEPOZITE | H108: x | J108: x | K108: x | L108: x | M108: x | O108: x
A109: 75 | B109: Studio (B) | C109: 45 | D109: 8 | F109: SOLD | M109: x | N109: x
A110: 76 | B110: Studio (A) | C110: 45 | D110: 8 | E110: 128000 | F110: SOLD | M110: x | N110: x
A111: 77 | B111: Studio (A) | C111: 45 | D111: 8 | F111: SOLD | M111: x | N111: x
A112: 78 | B112: Studio (B) | C112: 45 | D112: 8 | F112: SOLD | M112: x | N112: x
A113: 79 | B113: 1+1 | C113: 103 | D113: 40 | E113: 181000 | F113: DEPOSİT | H113: x | J113: x | K113: x | L113: x | M113: x | N113: x
A114: 80 | B114: Studio (C) | C114: 36 | D114: 5 | E114: 122000 | J114: x | K114: x | L114: x
A115: 10. Kat | H115: Köşe | I115: Deniz M. | J115: Dağ M. | K115: Havuz/Peysaj M. | L115: Kuzey | M115: Güney | N115: Doğu | O115: Batı
A117: No: | B117: MODEL | C117: Brüt Alan | D117: Balkon | E117: Fiyat | F117: Durum | G117: Not
A118: 81 | B118: Studio (C) | C118: 36 | D118: 5 | E118: 122500 | J118: x | K118: x | L118: x
A119: 82 | B119: 1+1 | C119: 103 | D119: 40 | F119: SOLD | H119: x | J119: x | K119: x | L119: x | M119: x | O119: x
A120: 83 | B120: Studio (B) | C120: 45 | D120: 8 | F120: SOLD | M120: x | N120: x
A121: 84 | B121: Studio (A) | C121: 45 | D121: 8 | F121: SOLD | M121: x | N121: x
A122: 85 | B122: Studio (A) | C122: 45 | D122: 8 | F122: SOLD | M122: x | N122: x
A123: 86 | B123: Studio (B) | C123: 45 | D123: 8 | F123: SOLD | M123: x | N123: x
A124: 87 | B124: 1+1 | C124: 103 | D124: 40 | F124: SOLD | H124: x | J124: x | K124: x | L124: x | M124: x | N124: x
A125: 88 | B125: Studio (C) | C125: 36 | D125: 5 | E125: 124500 | J125: x | K125: x | L125: x
A126: 11. Kat | H126: Köşe | I126: Deniz M. | J126: Dağ M. | K126: Havuz/Peysaj M. | L126: Kuzey | M126: Güney | N126: Doğu | O126: Batı
A128: No: | B128: MODEL | C128: Brüt Alan | D128: Balkon | E128: Fiyat | F128: Durum | G128: Not
A129: 89 | B129: Studio (C) | C129: 36 | D129: 5 | E129: 124500 | J129: x | K129: x | L129: x
A130: 90 | B130: 1+1 | C130: 103 | D130: 40 | E130: 186000 | F130: DEPOSİT | H130: x | J130: x | K130: x | L130: x | M130: x | O130: x
A131: 91 | B131: Studio (B) | C131: 45 | D131: 8 | F131: SOLD | M131: x | N131: x
A132: 92 | B132: Studio (A) | C132: 45 | D132: 8 | F132: SOLD | M132: x | N132: x
A133: 93 | B133: Studio (A) | C133: 45 | D133: 8 | F133: SOLD | M133: x | N133: x
A134: 94 | B134: Studio (B) | C134: 45 | D134: 8 | F134: SOLD | M134: x | N134: x
A135: 95 | B135: 1+1 | C135: 103 | D135: 40 | E135: 186000 | F135: DEPOSİT | H135: x | J135: x | K135: x | L135: x | M135: x | N135: x
A136: 96 | B136: Studio (C) | C136: 36 | D136: 5 | E136: 127000 | J136: x | K136: x | L136: x
A137: 12. Kat | H137: Köşe | I137: Deniz M. | J137: Dağ M. | K137: Havuz/Peysaj M. | L137: Kuzey | M137: Güney | N137: Doğu | O137: Batı
A139: No: | B139: MODEL | C139: Brüt Alan | D139: Balkon | E139: Fiyat | F139: Durum | G139: Not
A140: 97 | B140: Studio (C) | C140: 36 | D140: 5 | E140: 127000 | J140: x | K140: x | L140: x
A141: 98 | B141: 1+1 | C141: 103 | D141: 40 | F141: DEPOSİT | H141: x | J141: x | K141: x | L141: x | M141: x | O141: x
A142: 99 | B142: Studio (B) | C142: 45 | D142: 8 | E142: 136000 | F142: DEPOSİT | M142: x | N142: x
A143: 100 | B143: Studio (A) | C143: 45 | D143: 8 | F143: SOLD | M143: x | N143: x
A144: 101 | B144: Studio (A) | C144: 45 | D144: 8 | F144: SOLD | M144: x | N144: x
A145: 102 | B145: Studio (B) | C145: 45 | D145: 8 | E145: 136000 | F145: DEPOSİT | M145: x | N145: x
A146: 103 | B146: 1+1 | C146: 103 | D146: 40 | E146: 189000 | F146: SOLD | H146: x | J146: x | K146: x | L146: x | M146: x | N146: x
A147: 104 | B147: Studio (C) | C147: 36 | D147: 5 | E147: 129500 | J147: x | K147: x | L147: x
A148: 13. Kat | H148: Köşe | I148: Deniz M. | J148: Dağ M. | K148: Havuz/Peysaj M. | L148: Kuzey | M148: Güney | N148: Doğu | O148: Batı
A150: No: | B150: MODEL | C150: Brüt Alan | D150: Balkon | E150: Fiyat | F150: Durum | G150: Not
A151: 105 | B151: Studio (C) | C151: 36 | D151: 5 | E151: 130000 | J151: x | K151: x | L151: x
A152: 106 | B152: 1+1 | C152: 103 | D152: 40 | E152: 191500 | F152: RES.YÖNETİM | H152: x | I152: x | J152: x | K152: x | L152: x | M152: x | O152: x
A153: 107 | B153: Studio (B) | C153: 45 | D153: 8 | F153: SOLD | I153: x | M153: x | N153: x
A154: 108 | B154: Studio (A) | C154: 45 | D154: 8 | F154: SOLD | I154: x | M154: x | N154: x
A155: 109 | B155: Studio (A) | C155: 45 | D155: 8 | F155: SOLD | I155: x | M155: x | N155: x
A156: 110 | B156: Studio (B) | C156: 45 | D156: 8 | F156: SOLD | I156: x | M156: x | N156: x
A157: 111 | B157: 1+1 | C157: 103 | D157: 40 | F157: SOLD | H157: x | I157: x | J157: x | K157: x | L157: x | M157: x | N157: x
A158: 112 | B158: Studio (C) | C158: 36 | D158: 5 | E158: 132000 | J158: x | K158: x | L158: x
A159: 14. Kat | H159: Köşe | I159: Deniz M. | J159: Dağ M. | K159: Havuz/Peysaj M. | L159: Kuzey | M159: Güney | N159: Doğu | O159: Batı
A161: No: | B161: MODEL | C161: Brüt Alan | D161: Balkon | E161: Fiyat | F161: Durum | G161: Not
A162: 113 | B162: Studio (C) | C162: 36 | D162: 5 | E162: 132000 | J162: x | K162: x | L162: x
A163: 114 | B163: 1+1 | C163: 103 | D163: 40 | E163: 194000 | F163: RES.30.09.R.E | H163: x | I163: x | J163: x | K163: x | L163: x | M163: x | O163: x
A164: 115 | B164: Studio (B) | C164: 45 | D164: 8 | E164: 141000 | I164: x | M164: x | N164: x
A165: 116 | B165: Studio (A) | C165: 45 | D165: 8 | F165: DEPOSİT | I165: x | M165: x | N165: x
A166: 117 | B166: Studio (A) | C166: 45 | D166: 8 | F166: SOLD | I166: x | M166: x | N166: x
A167: 118 | B167: Studio (B) | C167: 45 | D167: 8 | F167: SOLD | I167: x | M167: x | N167: x
A168: 119 | B168: 1+1 | C168: 103 | D168: 40 | F168: SOLD | H168: x | I168: x | J168: x | K168: x | L168: x | M168: x | N168: x
A169: 120 | B169: Studio (C) | C169: 36 | D169: 5 | E169: 135000 | J169: x | K169: x | L169: x
A170: 15. Kat | H170: Köşe | I170: Deniz M. | J170: Dağ M. | K170: Havuz/Peysaj M. | L170: Kuzey | M170: Güney | N170: Doğu | O170: Batı
A172: No: | B172: MODEL | C172: Brüt Alan | D172: Balkon | E172: Fiyat | F172: Durum | G172: Not
A173: 121 | B173: Studio (C) | C173: 36 | D173: 5 | E173: 135000 | J173: x | K173: x | L173: x
A174: 122 | B174: 1+1 | C174: 103 | D174: 40 | F174: SOLD | H174: x | I174: x | J174: x | K174: x | L174: x | M174: x | O174: x
A175: 123 | B175: Studio (B) | C175: 45 | D175: 8 | E175: 143500 | I175: x | M175: x | N175: x
A176: 124 | B176: Studio (A) | C176: 45 | D176: 8 | E176: 143500 | I176: x | M176: x | N176: x
A177: 125 | B177: Studio (A) | C177: 45 | D177: 8 | E177: 143500 | I177: x | M177: x | N177: x
A178: 126 | B178: Studio (B) | C178: 45 | D178: 8 | F178: SOLD | I178: x | M178: x | N178: x
A179: 127 | B179: 1+1 | C179: 103 | D179: 40 | F179: SOLD | H179: x | I179: x | J179: x | K179: x | L179: x | M179: x | N179: x
A180: 128 | B180: Studio (C) | C180: 36 | D180: 5 | E180: 137500 | J180: x | K180: x | L180: x
A181: 16. Kat | H181: Köşe | I181: Deniz M. | J181: Dağ M. | K181: Havuz/Peysaj M. | L181: Kuzey | M181: Güney | N181: Doğu | O181: Batı
A183: No: | B183: MODEL | C183: Brüt Alan | D183: Balkon | E183: Fiyat | F183: Durum | G183: Not
A184: 129 | B184: Studio (C) | C184: 36 | D184: 5 | E184: 137500 | J184: x | K184: x | L184: x
A185: 130 | B185: 1+1 | C185: 103 | D185: 40 | F185: SOLD | H185: x | I185: x | J185: x | K185: x | L185: x | M185: x | O185: x
A186: 131 | B186: Studio (B) | C186: 45 | D186: 8 | F186: SOLD | I186: x | M186: x | N186: x
A187: 132 | B187: Studio (A) | C187: 45 | D187: 8 | E187: 146000 | I187: x | M187: x | N187: x
A188: 133 | B188: Studio (A) | C188: 45 | D188: 8 | E188: 146000 | I188: x | M188: x | N188: x
A189: 134 | B189: Studio (B) | C189: 45 | D189: 8 | F189: SOLD | I189: x | M189: x | N189: x
A190: 135 | B190: 1+1 | C190: 103 | D190: 40 | F190: SOLD | H190: x | I190: x | J190: x | K190: x | L190: x | M190: x | N190: x
A191: 136 | B191: Studio (C) | C191: 36 | D191: 5 | E191: 140000 | J191: x | K191: x | L191: x
A192: 17. Kat | H192: Köşe | I192: Deniz M. | J192: Dağ M. | K192: Havuz/Peysaj M. | L192: Kuzey | M192: Güney | N192: Doğu | O192: Batı
A194: No: | B194: MODEL | C194: Brüt Alan | D194: Balkon | E194: Fiyat | F194: Durum | G194: Not
A195: 137 | B195: Studio (C) | C195: 36 | D195: 5 | E195: 140000 | J195: x | K195: x | L195: x
A196: 138 | B196: 1+1 | C196: 103 | D196: 40 | F196: SOLD | H196: x | I196: x | J196: x | K196: x | L196: x | M196: x | O196: x
A197: 139 | B197: Studio (B) | C197: 45 | D197: 8 | E197: 148500 | I197: x | M197: x | N197: x
A198: 140 | B198: Studio (A) | C198: 45 | D198: 8 | E198: 148500 | I198: x | M198: x | N198: x
A199: 141 | B199: Studio (A) | C199: 45 | D199: 8 | E199: 148500 | I199: x | M199: x | N199: x
A200: 142 | B200: Studio (B) | C200: 45 | D200: 8 | E200: 148500 | F200: SOLD | I200: x | M200: x | N200: x
A201: 143 | B201: 1+1 | C201: 103 | D201: 40 | E201: 202000 | F201: SOLD | H201: x | I201: x | J201: x | K201: x | L201: x | M201: x | N201: x
A202: 144 | B202: Studio (C) | C202: 36 | D202: 5 | E202: 145000 | J202: x | K202: x | L202: x
A203: 18. Kat | H203: Köşe | I203: Deniz M. | J203: Dağ M. | K203: Havuz/Peysaj M. | L203: Kuzey | M203: Güney | N203: Doğu | O203: Batı
A205: No: | B205: MODEL | C205: Brüt Alan | D205: Balkon | E205: Fiyat | F205: Durum | G205: Not
A206: 145 | B206: Studio (C) | C206: 36 | D206: 5 | E206: 142500 | J206: x | K206: x | L206: x
A207: 146 | B207: 1+1 | C207: 103 | D207: 40 | E207: 204000 | F207: DEPOZITE | H207: x | I207: x | J207: x | K207: x | L207: x | M207: x | O207: x
A208: 147 | B208: Studio (B) | C208: 45 | D208: 8 | E208: 151000 | I208: x | M208: x | N208: x
A209: 148 | B209: Studio (A) | C209: 45 | D209: 8 | E209: 151000 | I209: x | M209: x | N209: x
A210: 149 | B210: Studio (A) | C210: 45 | D210: 8 | E210: 151000 | I210: x | M210: x | N210: x
A211: 150 | B211: Studio (B) | C211: 45 | D211: 8 | F211: DEPOSİT | I211: x | M211: x | N211: x
A212: 151 | B212: 1+1 | C212: 103 | D212: 40 | F212: SOLD | H212: x | I212: x | J212: x | K212: x | L212: x | M212: x | N212: x
A213: 152 | B213: Studio (C) | C213: 36 | D213: 5 | E213: 145000 | J213: x | K213: x | L213: x
A214: 19. Kat | H214: Köşe | I214: Deniz M. | J214: Dağ M. | K214: Havuz/Peysaj M. | L214: Kuzey | M214: Güney | N214: Doğu | O214: Batı
A216: No: | B216: MODEL | C216: Brüt Alan | D216: Balkon | E216: Fiyat | F216: Durum | G216: Not
A217: 153 | B217: Studio (C) | C217: 36 | D217: 5 | E217: 145000 | J217: x | K217: x | L217: x
A218: 154 | B218: 1+1 | C218: 103 | D218: 40 | F218: SOLD | H218: x | I218: x | J218: x | K218: x | L218: x | M218: x | O218: x
A219: 155 | B219: Studio (B) | C219: 45 | D219: 8 | E219: 154000 | I219: x | M219: x | N219: x
A220: 156 | B220: Studio (A) | C220: 45 | D220: 8 | E220: 154000 | I220: x | M220: x | N220: x
A221: 157 | B221: Studio (A) | C221: 45 | D221: 8 | E221: 154000 | I221: x | M221: x | N221: x
A222: 158 | B222: Studio (B) | C222: 45 | D222: 8 | E222: 154000 | I222: x | M222: x | N222: x
... 19 more rows

Sheet (Beluga-4)
B1: Beluga-4 | L1: Tarih: | N1: =TODAY() -> 2024-11-09
C3: Tip Kat Planı | H3: Penthouse Kat Planı
B5: Z. Kat | I5: Köşe | J5: Deniz M. | K5: Dağ M. | L5: Havuz/Peysaj M. | M5: Kuzey | N5: Güney | O5: Doğu | P5: Batı
B7: No: | C7: MODEL | D7: Brüt Alan | E7: Balkon | F7: Fiyat | G7: Durum | H7: Not
B8: 1 | C8: 2+1 | D8: 125 | E8: 40 | G8: SOLD | L8: x | N8: x | O8: x | P8: x
B9: 2 | C9: 1+1 | D9: 86 | E9: 16 | G9: SOLD | O9: x
B10: 3 | C10: 1+1 | D10: 86 | E10: 16 | G10: SOLD | O10: x
B11: 4 | C11: 2+1 | D11: 125 | E11: 40 | G11: SOLD | I11: x | L11: x | M11: x | O11: x
B12: 1. Kat | I12: Köşe | J12: Deniz M. | K12: Dağ M. | L12: Havuz/Peysaj M. | M12: Kuzey | N12: Güney | O12: Doğu | P12: Batı
B14: No: | C14: MODEL | D14: Brüt Alan | E14: Balkon | F14: Fiyat | G14: Durum | H14: Not
B15: 5 | C15: 2+1 | D15: 125 | E15: 40 | G15: SOLD | L15: x | N15: x | O15: x | P15: x
B16: 6 | C16: 1+1 | D16: 86 | E16: 16 | G16: SOLD | O16: x
B17: 7 | C17: 1+1 | D17: 86 | E17: 16 | G17: SOLD | O17: x
B18: 8 | C18: 2+1 | D18: 125 | E18: 40 | G18: SOLD | I18: x | L18: x | M18: x | O18: x
B19: 2. Kat | I19: Köşe | J19: Deniz M. | K19: Dağ M. | L19: Havuz/Peysaj M. | M19: Kuzey | N19: Güney | O19: Doğu | P19: Batı
B21: No: | C21: MODEL | D21: Brüt Alan | E21: Balkon | F21: Fiyat | G21: Durum | H21: Not
B22: 9 | C22: 2+1 | D22: 125 | E22: 40 | G22: SOLD | L22: x | N22: x | O22: x | P22: x
B23: 10 | C23: 1+1 | D23: 86 | E23: 16 | G23: SOLD | O23: x
B24: 11 | C24: 1+1 | D24: 86 | E24: 16 | G24: SOLD | O24: x
B25: 12 | C25: 2+1 | D25: 125 | E25: 40 | G25: SOLD | L25: x | M25: x | O25: x
B26: 3. Kat | I26: Köşe | J26: Deniz M. | K26: Dağ M. | L26: Havuz/Peysaj M. | M26: Kuzey | N26: Güney | O26: Doğu | P26: Batı
B28: No: | C28: MODEL | D28: Brüt Alan | E28: Balkon | F28: Fiyat | G28: Durum | H28: Not
B29: 13 | C29: 2+1 | D29: 125 | E29: 40 | G29: SOLD | L29: x | N29: x | O29: x | P29: x
B30: 14 | C30: 1+1 | D30: 86 | E30: 16 | G30: SOLD | O30: x
B31: 15 | C31: 1+1 | D31: 86 | E31: 16 | F31: 168000 | G31: SOLD | O31: x
B32: 16 | C32: 2+1 | D32: 125 | E32: 40 | G32: SOLD | I32: x | L32: x | M32: x | O32: x
B33: 4. Kat | I33: Köşe | J33: Deniz M. | K33: Dağ M. | L33: Havuz/Peysaj M. | M33: Kuzey | N33: Güney | O33: Doğu | P33: Batı
B35: No: | C35: MODEL | D35: Brüt Alan | E35: Balkon | F35: Fiyat | G35: Durum | H35: Not
B36: 17 | C36: 2+1 | D36: 125 | E36: 40 | G36: SOLD | L36: x | N36: x | O36: x | P36: x
B37: 18 | C37: 1+1 | D37: 86 | E37: 16 | G37: SOLD | O37: x
B38: 19 | C38: 1+1 | D38: 86 | E38: 16 | G38: SOLD | O38: x
B39: 20 | C39: 2+1 | D39: 125 | E39: 40 | G39: SOLD | I39: x | L39: x | M39: x | O39: x
B40: 5. Kat | I40: Köşe | J40: Deniz M. | K40: Dağ M. | L40: Havuz/Peysaj M. | M40: Kuzey | N40: Güney | O40: Doğu | P40: Batı
B42: No: | C42: MODEL | D42: Brüt Alan | E42: Balkon | F42: Fiyat | G42: Durum | H42: Not
B43: 21 | C43: 2+1 | D43: 125 | E43: 40 | G43: SOLD | L43: x | N43: x | O43: x | P43: x
B44: 22 | C44: 1+1 | D44: 86 | E44: 16 | G44: SOLD | O44: x
B45: 23 | C45: 1+1 | D45: 86 | E45: 16 | G45: SOLD | O45: x
B46: 24 | C46: 2+1 | D46: 125 | E46: 40 | G46: SOLD | I46: x | L46: x | M46: x | O46: x
B47: 6. Kat | I47: Köşe | J47: Deniz M. | K47: Dağ M. | L47: Havuz/Peysaj M. | M47: Kuzey | N47: Güney | O47: Doğu | P47: Batı
B49: No: | C49: MODEL | D49: Brüt Alan | E49: Balkon | F49: Fiyat | G49: Durum | H49: Not
B50: 25 | C50: 2+1 | D50: 125 | E50: 40 | G50: SOLD | L50: x | N50: x | O50: x | P50: x
B51: 26 | C51: 1+1 | D51: 86 | E51: 16 | F51: 173000 | G51: DEPOSİTE | O51: x
B52: 27 | C52: 1+1 | D52: 86 | E52: 16 | G52: SOLD | O52: x
B53: 28 | C53: 2+1 | D53: 125 | E53: 40 | G53: SOLD | I53: x | L53: x | M53: x | O53: x
B54: 7. Kat | I54: Köşe | J54: Deniz M. | K54: Dağ M. | L54: Havuz/Peysaj M. | M54: Kuzey | N54: Güney | O54: Doğu | P54: Batı
B56: No: | C56: MODEL | D56: Brüt Alan | E56: Balkon | F56: Fiyat | G56: Durum | H56: Not
B57: 29 | C57: 2+1 | D57: 125 | E57: 40 | G57: SOLD | L57: x | N57: x | O57: x | P57: x
B58: 30 | C58: 1+1 | D58: 86 | E58: 16 | G58: SOLD | O58: x
B59: 31 | C59: 1+1 | D59: 86 | E59: 16 | G59: SOLD | O59: x
B60: 32 | C60: 2+1 | D60: 125 | E60: 40 | G60: SOLD | I60: x | L60: x | M60: x | O60: x
B61: 8. Kat | I61: Köşe | J61: Deniz M. | K61: Dağ M. | L61: Havuz/Peysaj M. | M61: Kuzey | N61: Güney | O61: Doğu | P61: Batı
B63: No: | C63: MODEL | D63: Brüt Alan | E63: Balkon | F63: Fiyat | G63: Durum | H63: Not
B64: 33 | C64: 2+1 | D64: 125 | E64: 40 | G64: SOLD | L64: x | N64: x | O64: x | P64: x
B65: 34 | C65: 1+1 | D65: 86 | E65: 16 | G65: SOLD | O65: x
B66: 35 | C66: 1+1 | D66: 86 | E66: 16 | G66: SOLD | O66: x
B67: 36 | C67: 2+1 | D67: 125 | E67: 40 | G67: SOLD | I67: x | L67: x | M67: x | O67: x
B68: 9. Kat | I68: Köşe | J68: Deniz M. | K68: Dağ M. | L68: Havuz/Peysaj M. | M68: Kuzey | N68: Güney | O68: Doğu | P68: Batı
B70: No: | C70: MODEL | D70: Brüt Alan | E70: Balkon | F70: Fiyat | G70: Durum | H70: Not
B71: 37 | C71: 2+1 | D71: 125 | E71: 40 | G71: SOLD | L71: x | N71: x | O71: x | P71: x
B72: 38 | C72: 1+1 | D72: 86 | E72: 16 | F72: 180500 | G72: DEPOSİT | O72: x
B73: 39 | C73: 1+1 | D73: 86 | E73: 16 | F73: 180500 | G73: DEPOSİT | O73: x
B74: 40 | C74: 2+1 | D74: 125 | E74: 40 | G74: SOLD | I74: x | L74: x | M74: x | O74: x
B75: 10. Kat | I75: Köşe | J75: Deniz M. | K75: Dağ M. | L75: Havuz/Peysaj M. | M75: Kuzey | N75: Güney | O75: Doğu | P75: Batı
B77: No: | C77: MODEL | D77: Brüt Alan | E77: Balkon | F77: Fiyat | G77: Durum | H77: Not
B78: 41 | C78: 2+1 | D78: 125 | E78: 40 | G78: SOLD | L78: x | N78: x | O78: x | P78: x
B79: 42 | C79: 1+1 | D79: 86 | E79: 16 | G79: SOLD | O79: x
B80: 43 | C80: 1+1 | D80: 86 | E80: 16 | G80: SOLD | O80: x
B81: 44 | C81: 2+1 | D81: 125 | E81: 40 | G81: SOLD | I81: x | L81: x | M81: x | O81: x
B82: 11. Kat | I82: Köşe | J82: Deniz M. | K82: Dağ M. | L82: Havuz/Peysaj M. | M82: Kuzey | N82: Güney | O82: Doğu | P82: Batı
B84: No: | C84: MODEL | D84: Brüt Alan | E84: Balkon | F84: Fiyat | G84: Durum | H84: Not
B85: 45 | C85: 1+1 Pent | D85: 173 | E85: 104 (acık) | G85: GN SONS | L85: x | N85: x | O85: x | P85: x
B86: 46 | C86: 1+1 | D86: 89 | E86: 19 | G86: GN SONS | O86: x
B87: 47 | C87: 1+1 Pent | D87: 173 | E87: 104 (acık) | G87: GN SONS | I87: x | L87: x | M87: x | O87: x | P87: x

Sheet (Beluga-5)
B2: Beluga-5 | L2: Tarih: | N2: =TODAY() -> 2024-11-09
C4: Tip Kat Planı | H4: Penthouse Kat Planı
B6: Z. Kat | J6: Deniz M. | K6: Dağ M. | L6: Havuz/Peysaj M. | M6: Kuzey | N6: Güney | O6: Doğu | P6: Batı
B8: No: | C8: MODEL | D8: Brüt Alan | E8: Balkon | F8: Fiyat | G8: Durum | H8: Not
B9: 1 | C9: 2+1 | D9: 125 | E9: 40 | G9: SOLD | I9: x | L9: x | N9: x | O9: x | P9: x
B10: 2 | C10: 1+1 | D10: 86 | E10: 16 | G10: SOLD | O10: x
B11: 3 | C11: 1+1 | D11: 86 | E11: 16 | G11: SOLD | O11: x
B12: 4 | C12: 2+1 | D12: 125 | E12: 40 | G12: SOLD | L12: x | M12: x | O12: x
B13: 1. Kat | I13: Köşe | J13: Deniz M. | K13: Dağ M. | L13: Havuz/Peysaj M. | M13: Kuzey | N13: Güney | O13: Doğu | P13: Batı
B15: No: | C15: MODEL | D15: Brüt Alan | E15: Balkon | F15: Fiyat | G15: Durum | H15: Not
B16: 5 | C16: 2+1 | D16: 125 | E16: 40 | G16: SOLD | I16: x | L16: x | N16: x | O16: x | P16: x
B17: 6 | C17: 1+1 | D17: 86 | E17: 16 | G17: SOLD | O17: x
B18: 7 | C18: 1+1 | D18: 86 | E18: 16 | G18: SOLD | O18: x
B19: 8 | C19: 2+1 | D19: 125 | E19: 40 | G19: SOLD | L19: x | M19: x | O19: x
B20: 2. Kat | I20: Köşe | J20: Deniz M. | K20: Dağ M. | L20: Havuz/Peysaj M. | M20: Kuzey | N20: Güney | O20: Doğu | P20: Batı
B22: No: | C22: MODEL | D22: Brüt Alan | E22: Balkon | F22: Fiyat | G22: Durum | H22: Not
B23: 9 | C23: 2+1 | D23: 125 | E23: 40 | G23: SOLD | I23: x | L23: x | N23: x | O23: x | P23: x
B24: 10 | C24: 1+1 | D24: 86 | E24: 16 | G24: SOLD | O24: x
B25: 11 | C25: 1+1 | D25: 86 | E25: 16 | F25: 165500 | G25: DEPOSİT | O25: x
B26: 12 | C26: 2+1 | D26: 125 | E26: 40 | G26: SOLD | L26: x | M26: x | O26: x
B27: 3. Kat | I27: Köşe | J27: Deniz M. | K27: Dağ M. | L27: Havuz/Peysaj M. | M27: Kuzey | N27: Güney | O27: Doğu | P27: Batı
B29: No: | C29: MODEL | D29: Brüt Alan | E29: Balkon | F29: Fiyat | G29: Durum | H29: Not
B30: 13 | C30: 2+1 | D30: 125 | E30: 40 | G30: SOLD | I30: x | L30: x | N30: x | O30: x | P30: x
B31: 14 | C31: 1+1 | D31: 86 | E31: 16 | G31: SOLD | O31: x
B32: 15 | C32: 1+1 | D32: 86 | E32: 16 | G32: SOLD | O32: x
B33: 16 | C33: 2+1 | D33: 125 | E33: 40 | G33: SOLD | L33: x | M33: x | O33: x
B34: 4. Kat | I34: Köşe | J34: Deniz M. | K34: Dağ M. | L34: Havuz/Peysaj M. | M34: Kuzey | N34: Güney | O34: Doğu | P34: Batı
B36: No: | C36: MODEL | D36: Brüt Alan | E36: Balkon | F36: Fiyat | G36: Durum | H36: Not
B37: 17 | C37: 2+1 | D37: 125 | E37: 40 | G37: SOLD | I37: x | L37: x | N37: x | O37: x | P37: x
B38: 18 | C38: 1+1 | D38: 86 | E38: 16 | G38: SOLD | O38: x
B39: 19 | C39: 1+1 | D39: 86 | E39: 16 | G39: SOLD | O39: x
B40: 20 | C40: 2+1 | D40: 125 | E40: 40 | G40: SOLD | L40: x | M40: x | O40: x
B41: 5. Kat | I41: Köşe | J41: Deniz M. | K41: Dağ M. | L41: Havuz/Peysaj M. | M41: Kuzey | N41: Güney | O41: Doğu | P41: Batı
B43: No: | C43: MODEL | D43: Brüt Alan | E43: Balkon | F43: Fiyat | G43: Durum | H43: Not
B44: 21 | C44: 2+1 | D44: 125 | E44: 40 | G44: SOLD | I44: x | L44: x | N44: x | O44: x | P44: x
B45: 22 | C45: 1+1 | D45: 86 | E45: 16 | G45: SOLD | O45: x
B46: 23 | C46: 1+1 | D46: 86 | E46: 16 | G46: SOLD | O46: x
B47: 24 | C47: 2+1 | D47: 125 | E47: 40 | G47: SOLD | L47: x | M47: x | O47: x
B48: 6. Kat | I48: Köşe | J48: Deniz M. | K48: Dağ M. | L48: Havuz/Peysaj M. | M48: Kuzey | N48: Güney | O48: Doğu | P48: Batı
B50: No: | C50: MODEL | D50: Brüt Alan | E50: Balkon | F50: Fiyat | G50: Durum | H50: Not
B51: 25 | C51: 2+1 | D51: 125 | E51: 40 | G51: SOLD | I51: x | L51: x | N51: x | O51: x | P51: x
B52: 26 | C52: 1+1 | D52: 86 | E52: 16 | G52: SOLD | O52: x
B53: 27 | C53: 1+1 | D53: 86 | E53: 16 | G53: SOLD | O53: x
B54: 28 | C54: 2+1 | D54: 125 | E54: 40 | G54: SOLD | L54: x | M54: x | O54: x
B55: 7. Kat | I55: Köşe | J55: Deniz M. | K55: Dağ M. | L55: Havuz/Peysaj M. | M55: Kuzey | N55: Güney | O55: Doğu | P55: Batı
B57: No: | C57: MODEL | D57: Brüt Alan | E57: Balkon | F57: Fiyat | G57: Durum | H57: Not
B58: 29 | C58: 2+1 | D58: 125 | E58: 40 | G58: SOLD | I58: x | L58: x | N58: x | O58: x | P58: x
B59: 30 | C59: 1+1 | D59: 86 | E59: 16 | G59: SOLD | O59: x
B60: 31 | C60: 1+1 | D60: 86 | E60: 16 | G60: SOLD | O60: x
B61: 32 | C61: 2+1 | D61: 125 | E61: 40 | G61: SOLD | L61: x | M61: x | O61: x
B62: 8. Kat | I62: Köşe | J62: Deniz M. | K62: Dağ M. | L62: Havuz/Peysaj M. | M62: Kuzey | N62: Güney | O62: Doğu | P62: Batı
B64: No: | C64: MODEL | D64: Brüt Alan | E64: Balkon | F64: Fiyat | G64: Durum | H64: Not
B65: 33 | C65: 2+1 | D65: 125 | E65: 40 | G65: SOLD | I65: x | L65: x | N65: x | O65: x | P65: x
B66: 34 | C66: 1+1 | D66: 86 | E66: 16 | G66: SOLD | O66: x
B67: 35 | C67: 1+1 | D67: 86 | E67: 16 | G67: SOLD | O67: x
B68: 36 | C68: 2+1 | D68: 125 | E68: 40 | G68: SOLD | L68: x | M68: x | O68: x
B69: 9. Kat | I69: Köşe | J69: Deniz M. | K69: Dağ M. | L69: Havuz/Peysaj M. | M69: Kuzey | N69: Güney | O69: Doğu | P69: Batı
B71: No: | C71: MODEL | D71: Brüt Alan | E71: Balkon | F71: Fiyat | G71: Durum | H71: Not
B72: 37 | C72: 2+1 | D72: 125 | E72: 40 | G72: SOLD | I72: x | L72: x | N72: x | O72: x | P72: x
B73: 38 | C73: 1+1 | D73: 86 | E73: 16 | G73: SOLD | O73: x
B74: 39 | C74: 1+1 | D74: 86 | E74: 16 | G74: SOLD | O74: x
B75: 40 | C75: 2+1 | D75: 125 | E75: 40 | G75: SOLD | L75: x | M75: x | O75: x
B76: 10. Kat | I76: Köşe | J76: Deniz M. | K76: Dağ M. | L76: Havuz/Peysaj M. | M76: Kuzey | N76: Güney | O76: Doğu | P76: Batı
B78: No: | C78: MODEL | D78: Brüt Alan | E78: Balkon | F78: Fiyat | G78: Durum | H78: Not
B79: 41 | C79: 2+1 | D79: 125 | E79: 40 | G79: SOLD | I79: x | L79: x | N79: x | O79: x | P79: x
B80: 42 | C80: 1+1 | D80: 86 | E80: 16 | G80: SOLD | O80: x
B81: 43 | C81: 1+1 | D81: 86 | E81: 16 | G81: SOLD | O81: x
B82: 44 | C82: 2+1 | D82: 125 | E82: 40 | G82: SOLD | L82: x | M82: x | O82: x
B83: 11. Kat | I83: Köşe | J83: Deniz M. | K83: Dağ M. | L83: Havuz/Peysaj M. | M83: Kuzey | N83: Güney | O83: Doğu | P83: Batı
B85: No: | C85: MODEL | D85: Brüt Alan | E85: Balkon | F85: Fiyat | G85: Durum | H85: Not
B86: 45 | C86: 1+1 Pent | D86: 173 | E86: 104 (acık) | G86: GN SONS | I86: x | L86: x | N86: x | O86: x | P86: x
B87: 46 | C87: 1+1 | D87: 89 | E87: 19 | G87: GN SONS | O87: x
B88: 47 | C88: 1+1 Pent | D88: 173 | E88: 104 (acık) | G88: GN SONS | L88: x | M88: x | O88: x | P88: x

Sheet Sheet1 (1) (hidden)
